Cogmind - Beta 9.5 @@@ ROGUE MODE // 2020.04.05 @ 20:59:26 Player: Valguris Result: Heading to fleet! Performance ------------- Evolutions (9) 4500 Regions Visited (39) 7800 Robots Destroyed (773) 3865 Value Destroyed (42748) 42748 Prototype IDs (133) 2660 Alien Tech Used (13) 2600 Bonus (38041) 38041 TOTAL SCORE: 102214 Bonus ------- Triggered High Security 500 High Alert Combat Kills 18118 Follower Combat Kills 6479 Network Hubs Disabled 400 Met Data Miner 300 Met Zhirov 300 Met Warlord at Base 500 MAIN.C Attacked Warlord 500 Warlord Defense Kill 1564 Built Enhanced Grunts 300 A7 Reached Mainframe 300 Met R17 at Cetus 500 Found Hidden Lab 3000 Used Core Reset Matrix 3000 Met R17 at Research 2000 Met Warlord at Research 2000 Scanned by Researcher 500 Pursued by Intercept 1000 Acquired SGEMP 2000 Win 3000 Friendly Fire -8220 Cogmind --------- Core Integrity 463/1850 Matter 575/600 Energy 83/100 System Corruption 0% Temperature Cool (7) Movement Treading (145) Location To Fleet Rendezvous Parts ------- > --- POWER (2) -------- (None) > --- PROPULSION (4) --- Advanced Heavy Treads Biometal Heavy Treads > --- UTILITY (17) ----- Large Storage Unit Large Storage Unit Improved Matter Compressor Advanced Visual Processing Unit Experimental Targeting Computer Advanced Armor Integrity Analyzer > --- WEAPON (3) ------- (None) > --- INVENTORY (16) --- Improved Arc Projector Sigix Quantum Sheargun Null Cannon Improved Potential Cannon Improved Potential Cannon Compact Mass Driver Compact Tesla Bomb Launcher Guided Remote Datajack Peak State ------------ > --- POWER ------------ Improved Quantum Reactor Improved Quantum Reactor > --- PROPULSION ------- Advanced Heavy Treads Compact Wheel Armored Wheel > --- UTILITY ---------- Large Storage Unit Large Storage Unit High-capacity Storage Unit High-capacity Storage Unit High-capacity Storage Unit Advanced Energy Well Experimental Targeting Computer Experimental Targeting Computer Quantum Capacitor Damper Plating Advanced Powered Armor Heavy Regenerative Plating Advanced Force Field > --- WEAPON ----------- Sigix Quantum Sheargun Long-range Proton Cannon Compact Tesla Bomb Launcher > --- INVENTORY -------- Improved Quantum Reactor Improved Quantum Reactor Enhanced Biometal Leg Enhanced Biometal Leg Enhanced Biometal Leg Compact Wheel Armored Wheel Centrium Wheel Experimental Cooling System Advanced Energy Well Improved Matter Compressor Experimental Targeting Computer Advanced Armor Integrity Analyzer Precision Matter Filter Layered Heavy Armor Plating System Mapper Transdimensional Reconstructor Transdimensional Reconstructor Transdimensional Reconstructor Enhanced Gamma Rifle Vortex Shotgun Vortex Shotgun Sigix Quantum Sheargun Sigix Quantum Sheargun Heavy Proton Cannon Enhanced Nova Cannon Null Cannon Improved Potential Cannon Improved Potential Cannon Compact Mass Driver Compact Tesla Bomb Launcher Vortex Catalyst Activator Ragnarok Missile Launcher Guided Remote Datajack SGEMP Prototype [Rating: 190] Favorites ----------- Power Vortex Chain Reactor Engine Light Deuterium Engine Power Core Cooled Fission Core Reactor Vortex Chain Reactor Propulsion Wheel Treads Light Treads Leg Aluminum Leg Wheel Wheel Hover Unit Antigrav System Utility Large Storage Unit Device Improved Cooling System Storage Large Storage Unit Processor Experimental Targeting Computer Hackware Hacking Suite Protection Damper Plating Weapon Proton Cannon Energy Gun High-powered Shock Rifle Energy Cannon Proton Cannon Ballistic Gun Heavy Assault Rifle Ballistic Cannon Bore Cannon Launcher Smartbomb Launcher Special Weapon Remote Datajack Slashing Weapon Great Axe Piercing Weapon Vortex Lance Build | -11 -10 -10 -10 -9 -8 -7 -7 -7 -7 -7 -7 -6 -6 -6 -6 -6 -6 -6 -6 -5 -5 -5 -5 -5 -5 -4 -4 -4 -4 -4 -3 -3 -3 -3 -2 -2 -2 -1 -1 ------- Run | Scr Mat Min Exi Min Mat Fac Was Fac Low Low Dat Pro Fac Was Fac Ext Cet Arc Hub Fac Was Fac Upp Upp War Pro Fac Upp Upp Zhi Pro Res Arm Lab Res Tes Sec Acc Com Slots Evolved 18 | . . . . . 4 2 . . . . . . 2 . . . . . . 2 . . . . . . 2 . . . . 2 . . 2 . . 2 . Power 1 | . . . . . . 1 . . . . . . . . . . . . . . . . . . . . . . . . . . . . . . . . . Propulsion 1 | . . . . . . . . . . . . . 1 . . . . . . . . . . . . . . . . . . . . . . . . . . Utility 15 | . . . . . 4 1 . . . . . . 1 . . . . . . 2 . . . . . . 2 . . . . 2 . . 2 . . 1 . Weapon 1 | . . . . . . . . . . . . . . . . . . . . . . . . . . . . . . . . . . . . . . 1 . Parts Attached 1047 | 8 8 5 2 10 23 46 14 12 18 15 1 34 18 5 57 50 37 12 41 56 18 40 13 2 10 . 6 3 . 10 14 30 27 10 114 57 117 86 18 Power 56 | 1 1 1 . 1 1 3 3 2 3 . . . 1 1 3 1 2 . . 2 3 4 2 . 1 . . . . 2 . . . . 6 . 6 5 1 Engine 12 | 1 1 1 . 1 . 1 2 2 . . . . 1 . 1 . . . . . . . 1 . . . . . . . . . . . . . . . . Core 12 | . . . . . 1 2 1 . 3 . . . . . . . . . . 1 . 3 1 . . . . . . . . . . . . . . . . Reactor 32 | . . . . . . . . . . . . . . 1 2 1 2 . . 1 3 1 . . 1 . . . . 2 . . . . 6 . 6 5 1 Propulsion 72 | 2 . 2 . 3 3 4 . . 1 1 . . 2 . 2 2 3 1 2 3 1 . . . . . . . . 2 . . . . 11 1 8 16 2 Treads 11 | 2 . . . 1 . . . . . . . . . . . . 1 . . . . . . . . . . . . . . . . . 1 . . 4 2 Leg 2 | . . 2 . . . . . . . . . . . . . . . . . . . . . . . . . . . . . . . . . . . . . Wheel 57 | . . . . 2 3 4 . . 1 1 . . 2 . 2 2 2 1 2 2 1 . . . . . . . . 1 . . . . 10 1 8 12 . Hover 2 | . . . . . . . . . . . . . . . . . . . . 1 . . . . . . . . . 1 . . . . . . . . . Flight . | . . . . . . . . . . . . . . . . . . . . . . . . . . . . . . . . . . . . . . . . Utility 462 | 2 3 . 2 . 13 11 5 7 4 2 . 12 8 2 19 30 10 6 27 35 7 23 8 2 1 . 4 . . 3 8 14 7 5 58 34 58 30 2 Device 302 | . 1 . . . 4 3 2 4 3 1 . 5 4 1 14 29 6 4 16 29 4 19 6 1 1 . 2 . . 2 3 8 7 3 46 26 34 13 1 Storage 34 | 2 2 . 2 . . 2 . . . . . 1 . . . 1 . . 3 3 1 1 . . . . . . . 1 . 1 . 1 5 1 3 3 1 Processor 14 | . . . . . 1 2 . . . . . . . . . . . 1 . . 1 . 1 . . . 1 . . . . . . . 4 . . 3 . Hackware 8 | . . . . . . . . 1 . . . . . . 2 . . . . 1 . 1 1 . . . . . . . . . . . . . . 2 . Protection 104 | . . . . . 8 4 3 2 1 1 . 6 4 1 3 . 4 1 8 2 1 2 . 1 . . 1 . . . 5 5 . 1 3 7 21 9 . Artifact . | . . . . . . . . . . . . . . . . . . . . . . . . . . . . . . . . . . . . . . . . Weapon 457 | 3 4 2 . 6 6 28 6 3 10 12 1 22 7 2 33 17 22 5 12 16 7 13 3 . 8 . 2 3 . 3 6 16 20 5 39 22 45 35 13 Energy Gun 72 | 3 4 1 . 2 6 16 . . 4 5 1 10 2 . 4 . 1 . . . 1 . . . 2 . . . . . . . . 1 . . . 3 6 Energy Cannon 215 | . . . . . . 4 3 2 2 . . 2 2 . 12 10 13 4 4 12 2 13 2 . 1 . 1 2 . 2 4 14 14 3 28 15 24 16 4 Ballistic Gun 7 | . . 1 . 3 . 1 . . . . . . . . 1 . 1 . . . . . . . . . . . . . . . . . . . . . . Ballistic Cannon 29 | . . . . . . 6 2 1 . . . . 2 1 4 . . . 3 2 3 . . . . . . . . . . . 1 . 2 . 1 1 . Launcher 84 | . . . . . . 1 . . 4 5 . 6 1 . 1 3 7 . 3 . 1 . 1 . 4 . 1 1 . 1 2 2 5 . 2 . 17 14 2 Special Weapon 36 | . . . . 1 . . . . . 1 . . . . 6 4 . 1 1 2 . . . . . . . . . . . . . 1 7 7 3 1 1 Impact Weapon . | . . . . . . . . . . . . . . . . . . . . . . . . . . . . . . . . . . . . . . . . Slashing Weapon 13 | . . . . . . . 1 . . 1 . 4 . 1 5 . . . 1 . . . . . . . . . . . . . . . . . . . . Piercing Weapon 1 | . . . . . . . . . . . . . . . . . . . . . . . . . 1 . . . . . . . . . . . . . . Special Melee Weapon . | . . . . . . . . . . . . . . . . . . . . . . . . . . . . . . . . . . . . . . . . Unidentified Prototypes 45 | . . . . . 2 1 . 2 1 . . . . . 1 . 4 . . . 1 2 . . 6 . . . . 4 . 2 2 5 6 4 2 . . Parts Lost 114 | . 2 6 . 2 1 7 2 1 1 2 . . 1 . 8 . . 1 6 5 2 . . . . . . . . . . . . . . 2 12 29 24 Power 16 | . . 1 . . . 1 2 . . . . . . . 1 . . . 1 1 . . . . . . . . . . . . . . . . 1 5 3 Propulsion 29 | . . 2 . 1 1 2 . . 1 1 . . 1 . 2 . . 1 1 2 . . . . . . . . . . . . . . . 1 3 7 3 Utility 41 | . . 1 . . . 3 . . . 1 . . . . 2 . . . 2 2 1 . . . . . . . . . . . . . . 1 5 11 12 Weapon 28 | . 2 2 . 1 . 1 . 1 . . . . . . 3 . . . 2 . 1 . . . . . . . . . . . . . . . 3 6 6 Highest Loss Streak 20 | . 2 6 . 1 1 2 1 1 1 1 . . 1 . 6 . . 1 6 2 1 . . . . . . . . . . . . . . 2 5 12 20 Average Slot Usage (%) 83 | . 100 95 90 85 88 90 88 91 91 91 92 92 87 86 84 78 77 80 84 90 83 81 87 88 78 76 72 73 73 74 73 74 74 73 78 84 84 81 74 Engine 2 | . 14 13 14 14 . 1 4 13 10 . . . 2 2 1 6 4 . . . . . . . . . . . . . . . . . . . . . . Core 3 | . . . . . 8 12 7 1 4 15 15 15 9 6 2 . . . . 1 2 6 10 11 6 . . . . . . . . . . . . . . Reactor 4 | . . . . . . . . . . . . . . 3 8 6 7 13 12 9 7 4 . . 1 5 5 5 5 5 5 4 4 4 4 4 5 6 5 Treads 1 | . 28 19 . . . . . . . . . . . . . . . . . . . . . . . . . . . . . . . . . . . . 3 Wheel 13 | . . . . 18 17 14 15 15 14 14 15 15 16 20 19 20 19 19 14 10 11 11 11 11 11 11 10 10 10 10 10 9 9 9 11 16 15 13 3 Device 12 | . 11 9 . . 10 9 14 13 14 15 15 14 16 12 8 6 6 12 12 14 11 9 16 16 16 17 14 15 15 14 10 13 14 11 12 15 14 5 12 Storage 17 | . 16 14 19 14 9 12 15 15 15 15 15 15 13 13 13 13 13 13 13 23 17 20 23 23 23 23 21 21 21 21 21 19 19 20 20 20 21 21 16 Processor 7 | . . . . . . 5 11 7 7 7 7 7 6 6 6 6 6 7 11 5 10 7 10 11 11 11 10 10 10 10 10 9 9 9 11 12 10 10 13 Protection 5 | . . . . . 24 15 3 7 7 6 7 7 6 6 5 6 6 6 4 10 5 5 . . . . 5 5 5 5 9 8 9 9 8 5 5 9 4 Energy Gun 3 | . 28 23 14 13 17 13 . . 8 11 . 7 2 . . . . . . . 2 . . . . . . . . . . . . . . . . 1 2 Energy Cannon 5 | . . . . . . . 10 14 6 . . 2 6 . 5 8 7 5 11 8 4 10 10 11 1 . . . . 2 . 7 5 8 6 7 5 2 2 Launcher 1 | . . . . . . . . . . . . . . . . . 1 . . . . . . . 2 5 5 4 5 3 4 . 1 . . . 2 5 . Naked Turns . | . . . . . . . . . . . . . . . . . . . . . . . . . . . . . . . . . . . . . . . . Heaviest Build 289 | 14 26 26 90 96 119 142 140 150 135 143 142 150 151 182 193 207 215 191 220 183 168 175 172 140 143 139 164 164 164 174 182 224 228 247 269 269 273 289 124 Greatest Support 155 | 40 40 40 20 20 20 20 20 20 20 20 20 20 38 38 38 38 38 38 40 44 44 44 44 44 44 44 44 44 44 44 44 44 44 44 56 48 60 150 155 Greatest Overweight (x) 16 | . . 1 4 9 5 13 6 7 6 7 7 7 6 4 6 6 16 5 5 10 3 3 3 3 3 3 3 3 3 6 4 5 5 5 9 5 7 7 4 Average Overweight (x) 4 | . . . 1 6 4 6 5 6 6 6 6 6 4 3 4 5 5 4 4 3 2 2 2 3 2 3 3 3 3 3 3 3 4 4 4 4 4 3 2 Largest Inventory Capacity 50 | 8 10 10 24 24 24 50 30 30 30 30 30 50 30 30 30 32 32 32 38 32 32 30 30 30 30 30 30 30 30 30 30 32 32 38 46 40 40 40 16 Average Capacity 29 | 5 8 10 14 24 24 28 30 30 30 30 30 30 30 30 30 31 32 32 31 31 25 27 30 30 30 30 30 30 30 30 30 30 32 35 39 40 40 35 15 Most Carried 40 | 6 10 10 16 24 24 30 30 30 30 30 30 30 30 30 30 32 32 32 32 32 31 30 30 30 30 30 30 30 30 30 30 31 32 37 40 40 40 40 16 Average Carried 29 | 3 8 9 9 20 23 27 29 29 29 29 30 29 29 30 29 31 31 31 31 26 24 27 28 30 29 30 28 29 29 29 29 29 31 33 38 39 38 33 14 Final Capacity 40 | 8 10 10 24 24 24 30 30 30 30 30 30 30 30 30 30 32 32 32 30 32 24 30 30 30 30 30 30 30 30 30 30 32 32 38 40 40 40 16 16 Final Carried 40 | 6 10 8 16 24 24 29 30 30 30 30 30 30 30 30 30 32 32 32 16 32 24 30 30 30 30 30 30 30 30 30 30 31 31 37 40 39 37 15 10 Class Distribution -------------------- 75% | Hauler-Mutant 7% | Alien-Mutant 6% | Mutant 4% | Scavenger-Mutant Dominant Class ---------------- Mutant | -10/Materials Mutant | -10/Mines Mutant | -10/Exiles Hauler-Mutant | -9/Mines Hauler-Mutant | -8/Materials Hauler-Mutant | -7/Factory Hauler-Mutant | -7/Waste Hauler-Mutant | -7/Factory Hauler-Mutant | -7/Lower Caves Hauler-Mutant | -7/Lower Caves Hauler-Mutant | -7/Data Miner Hauler-Mutant | -6/Proximity Caves Hauler-Mutant | -6/Factory Commander-Mutant | -6/Waste Commander-Mutant | -6/Factory Hauler-Mutant | -6/Extension Hauler-Mutant | -6/Cetus Hauler-Mutant | -6/Archives Hauler-Skirmisher | -6/Hub_04(d) Hauler-Mutant | -5/Factory Scavenger-Mutant | -5/Waste Hauler-Mutant | -5/Factory Hauler-Mutant | -5/Upper Caves Hauler-Mutant | -5/Upper Caves Hauler-Mutant | -5/Warlord Hauler-Mutant | -4/Proximity Caves Hauler-Mutant | -4/Factory Hauler-Mutant | -4/Upper Caves Hauler-Mutant | -4/Upper Caves Hauler-Mutant | -4/Zhirov Hauler-Mutant | -3/Proximity Caves Hauler-Mutant | -3/Research Hauler-Mutant | -3/Armory Hauler-Mutant | -3/Lab Hauler-Mutant | -2/Research Hauler-Mutant | -2/Testing Alien-Mutant | -2/Section 7 Alien-Mutant | -1/Access Alien-Mutant | -1/Command Resources | -11 -10 -10 -10 -9 -8 -7 -7 -7 -7 -7 -7 -6 -6 -6 -6 -6 -6 -6 -6 -5 -5 -5 -5 -5 -5 -4 -4 -4 -4 -4 -3 -3 -3 -3 -2 -2 -2 -1 -1 ----------- Run | Scr Mat Min Exi Min Mat Fac Was Fac Low Low Dat Pro Fac Was Fac Ext Cet Arc Hub Fac Was Fac Upp Upp War Pro Fac Upp Upp Zhi Pro Res Arm Lab Res Tes Sec Acc Com Matter Collected 20551 | 276 52 67 30 204 272 504 732 120 288 291 . 797 174 163 1201 718 668 199 592 641 584 617 497 20 492 288 63 805 288 410 668 294 678 180 1612 688 2356 1626 396 Remotely . | . . . . . . . . . . . . . . . . . . . . . . . . . . . . . . . . . . . . . . . . Salvage Created 44818 | 75 224 225 . 494 1881 2039 367 376 972 570 . 780 299 369 1779 910 1140 80 947 1574 1424 1060 478 89 536 462 37 371 161 428 658 1498 1012 . 1609 1561 9341 7934 1058 Parts 1562 | 3 16 11 . 37 78 83 7 20 34 24 . 28 14 4 71 26 43 2 36 67 13 31 14 2 15 30 2 13 4 8 28 61 36 . 59 49 320 241 32 Haulers Intercepted 33 | . . . . . 3 2 . 3 1 . . . 1 . 2 6 . . . 1 . 5 . . . . . . . . . 3 . . . 1 2 3 . Recyclers Shooed 19 | 1 1 . . 2 . 1 . . . . . . . . 3 1 . . . 5 . . . . . . . . . . . . . . . . . 5 . Parts Field Recycled . | . . . . . . . . . . . . . . . . . . . . . . . . . . . . . . . . . . . . . . . . Retrieved Matter . | . . . . . . . . . . . . . . . . . . . . . . . . . . . . . . . . . . . . . . . . Parts Self-Destructed 209 | . . . . . . . . . 9 12 . 15 . . . . . . . . . . 25 19 38 35 . 24 11 3 18 . . . . . . . . Prevented 55 | . . . . . . . . . 19 11 . 14 . . . . . . . . . . 5 2 2 . . . . 2 . . . . . . . . . Kills | -11 -10 -10 -10 -9 -8 -7 -7 -7 -7 -7 -7 -6 -6 -6 -6 -6 -6 -6 -6 -5 -5 -5 -5 -5 -5 -4 -4 -4 -4 -4 -3 -3 -3 -3 -2 -2 -2 -1 -1 ------- Run | Scr Mat Min Exi Min Mat Fac Was Fac Low Low Dat Pro Fac Was Fac Ext Cet Arc Hub Fac Was Fac Upp Upp War Pro Fac Upp Upp Zhi Pro Res Arm Lab Res Tes Sec Acc Com Combat Hostiles Destroyed 603 | . 7 7 . 14 21 28 1 2 11 13 . 16 3 1 13 4 17 1 14 18 5 6 8 1 13 24 4 12 9 . 24 15 21 . 24 17 111 100 18 Melee 1 | . . . . . . . . . . . . . . . . . . . . . . . . . . . . . . . . . . . . . . 1 . Guns 75 | . 5 7 . 14 16 14 . . 2 2 . 2 1 . 1 . . . . . 1 . . . . . . . . . . . . . . . . 5 5 Cannons 128 | . . . . . . 3 1 2 1 . . 1 1 1 10 1 1 1 3 17 4 4 1 1 . . . 1 . . 3 5 6 . 4 10 28 14 4 AOE 235 | . 2 . . . . 6 . . 7 10 . 7 . . 2 2 10 . 4 . . 1 7 . 11 24 4 11 9 . 20 4 11 . 6 . 23 45 9 Classes Destroyed 29 | 1 2 2 . 4 2 2 1 1 2 . . . . . 1 1 . . . . . . 1 . 1 . . . . . 1 . 1 . 2 1 2 1 . Worker 27 | . . . . 2 5 1 . . . . . . . . 1 1 . . 2 . . 1 . . . . . . . . . 2 . . . . 4 6 2 Builder 19 | . . . . 1 2 1 . . . . . . . . 5 . . . . 1 . 1 . . . . . . . . . 3 . . . . 1 4 . Tunneler 3 | . . . . 1 . . . . . . . . . . . . . . . 1 . . . . . . . . . . . . . . . . . 1 . Hauler 33 | . . . . . 3 2 . 3 1 . . . 1 . 2 6 . . . 1 . 5 . . . . . . . . . 3 . . . 1 2 3 . Recycler 24 | 1 . 2 . . 3 5 . 1 . . . . . . 3 . . . 1 3 . . . . . . . . . . . . . . . . 1 4 . Carrier 1 | . . . . . . . . . . . . . . . . . . . . . . . . . . . . . . . . . . . . . . 1 . Minesweeper 1 | . . . . . . . . . . . . . . . . . . . . . . . 1 . . . . . . . . . . . . . . . . Mechanic 8 | . . . . . . . . . . . . . . . . . . . . . . . . . 1 . . . . . . . . . . . 1 5 1 Operator 2 | . . . . . . . . . . . . . . . 1 . . . . . . . . . . . . . . . . 1 . . . . . . . Watcher 21 | . 2 . . . 5 1 . . . . . . 1 . . . 2 . . 2 . 1 . . . . . . . . . 2 . . . . 2 3 . Swarmer 99 | . . 3 . 6 3 4 . . 2 6 . 6 . . . . 7 . 4 . . . 3 . . 16 3 2 3 . 10 . 1 . 5 1 6 7 1 Saboteur 10 | . . . . . . . . . . . . . . . . . . . . . . . . . . . . . . . 1 . 4 . . . 1 4 . Grunt 220 | . 7 2 . 7 11 16 . . 6 5 . 8 2 . 7 2 4 . 3 10 . . 4 . 8 3 1 7 4 . 8 10 7 . 1 10 27 34 6 Brawler 24 | . . . . 1 2 . . . 1 1 . . . . . . . . . . . . . 1 2 2 . . . . 1 . 1 . . . 8 3 1 Duelist 19 | . . . . . . . . . 1 . . . . . . . 1 . 2 . . . 1 . 1 . . 1 . . 1 . 3 . . . 4 4 . Protector 8 | . . . . . . . . . . . . . . . . . . . . . . . . . 1 . . . . . . . 1 . . . 4 2 . Researcher 3 | . . . . . . . . . . . . . . . . . . . . . . . . . . . . . . . . . . . . . 3 . . Sentry 40 | . . . . . 5 2 . 1 1 1 . 1 . . 2 . . 1 3 1 . 2 . . . . . . . . 1 1 . . . . 8 9 1 Demolisher 4 | . . 2 . . . . . . . . . . . . . . . . 1 . . . . . . . . . . . . . . . 1 . . . . Specialist 3 | . . . . . . . . . . . . . . . . . . . . . . . . . . . . . . . . . 2 . . 1 . . . Hunter 54 | . . . . . . 3 . 1 . 1 . . . . 3 1 . . . 2 . 1 . . . 1 . . 2 . . 1 . . 7 . 17 8 6 Programmer 49 | . . . . . . 3 . . . . . 1 1 . 2 . . . . 5 . 3 . . . 2 . 1 . . 2 3 2 . . 2 10 10 2 Q-Series 1 | . . . . . . . . . . . . . . . . . . . . . . . . . . . . . . . . . . . . . 1 . . Behemoth 7 | . . . . . . . . . . . . . . . . 1 . . . . . . . . 1 . . 1 . . . . . . 1 . 2 . 1 Compactor 7 | . . . . . . . 1 . . . . . . 1 . . . . . . 5 . . . . . . . . . . . . . . . . . . Cetus Guard 5 | . . . . . . . . . . . . . . . . . 5 . . . . . . . . . . . . . . . . . . . . . . S7 Guard 3 | . . . . . . . . . . . . . . . . . . . . . . . . . . . . . . . . . . . . . 3 . . Lightning 1 | . . . . . . . . . . . . . . . . . . . 1 . . . . . . . . . . . . . . . . . . . . Tracker 11 | . . . . . . . . . . . . . . . . . . . . . . . . . . . . . . . . . . . . . 9 2 . Combat Programmer 11 | . . . . . . . . . . . . . . . . . . . . . . . . . . . . . . . . . . . . . 9 2 . Investigator 1 | . . . . . . . . . . . . . . . . . . . . . . . . . . . . . . . . . . . . . . 1 . Striker 16 | . . . . . . . . . . . . . . . . . . . . . . . . . . . . . . . . . . . 5 2 . 9 . Executioner 12 | . . . . . . . . . . . . . . . . . . . . . . . . . . . . . . . . . . . 4 . 2 6 . Alpha 7 1 | . . . . . . . . . . . . . . . . . . . . . . . . . . . . . . . . . . . . 1 . . . Decomposer 2 | . . . . . . . . . . . . . . . . . . . . . . . 1 . . . . . . . 1 . . . . . . . . Samaritan 1 | . . . . . . . . . 1 . . . . . . . . . . . . . . . . . . . . . . . . . . . . . . Surgeon 1 | . . . . . . . . 1 . . . . . . . . . . . . . . . . . . . . . . . . . . . . . . . Wasp 4 | . . . . . . . . 1 . . . . . 1 1 . . . . . . 1 . . . . . . . . . . . . . . . . . Thug 5 | . . . . . . . . . 2 . . . . . 2 . 1 . . . . . . . . . . . . . . . . . . . . . . Savage 1 | . . . . . . . . . . . . . . . . . . . . . . . 1 . . . . . . . . . . . . . . . . Butcher 1 | . . . . . . . . . 1 . . . . . . . . . . . . . . . . . . . . . . . . . . . . . . Martyr 4 | . . . . . . . 2 . . . . . . 1 . . . . . . 1 . . . . . . . . . . . . . . . . . . Guerrilla 2 | . . . . . . . . . . . . . . . . . 2 . . . . . . . . . . . . . . . . . . . . . . Best Kill Streak 43 | 1 4 4 . 4 7 8 1 2 6 6 . 4 2 1 11 3 7 1 7 4 2 2 7 1 9 5 3 6 4 . 8 7 10 . 5 4 28 43 11 Combat Bots Only 38 | . 4 3 . 4 5 7 1 1 6 6 . 4 2 1 3 2 6 1 6 3 2 2 7 1 8 5 3 6 4 . 8 5 10 . 5 4 24 38 9 Max Kills in Single Turn 7 | 1 2 1 . 2 2 2 1 1 6 3 . 3 1 1 2 2 3 1 4 1 1 2 4 1 3 4 2 3 2 . 3 5 5 . 4 1 3 7 2 Gunslinging 1 | . . . . . 1 . . . . . . . . . . . . . . . . . . . . . . . . . . . . . . . . . . Exploded 6 | . 2 . . . . 2 . . 4 3 . 3 . . 2 1 3 . 4 . . 1 4 . 3 4 2 3 2 . 3 4 5 . 4 . 2 6 2 Melee 1 | . . . . . . . . . . . . . . . . . . . . . . . . . . . . . . . . . . . . . . 1 . Uniques/NPCs Destroyed 4 | . . . . . . . . . . . . . . . . . 1 . . . . . . . . . . . . . . . . . . . . 3 . A7 (-6/Cetus) Svarog (-1/Access) Perun (-1/Access) Zhirov (-1/Access) Combat | -11 -10 -10 -10 -9 -8 -7 -7 -7 -7 -7 -7 -6 -6 -6 -6 -6 -6 -6 -6 -5 -5 -5 -5 -5 -5 -4 -4 -4 -4 -4 -3 -3 -3 -3 -2 -2 -2 -1 -1 -------- Run | Scr Mat Min Exi Min Mat Fac Was Fac Low Low Dat Pro Fac Was Fac Ext Cet Arc Hub Fac Was Fac Upp Upp War Pro Fac Upp Upp Zhi Pro Res Arm Lab Res Tes Sec Acc Com Damage Taken 32435 | . 312 552 . 523 764 1527 39 . 226 535 . 506 236 31 1506 418 604 136 2548 1403 45 239 239 6 26 17 12 . 14 . 521 321 125 . 1851 948 5656 6261 4288 Core 2585 | . 51 107 . 87 26 138 3 . 41 34 . 31 . . 73 46 11 23 267 89 . 22 32 . 9 8 . . . . 20 8 . . 158 1 267 360 673 Absorbed by Shields 8108 | . . . . . . . . . . . . . . . . 123 175 . . 252 47 10 . 7 27 17 14 . 15 . 490 333 131 . 591 317 2263 3016 280 Core Remaining (%) 67 | 100 . . . 2 95 . . . . . . 64 . . . . . . 50 . . . . . . 84 . . . . 98 . . 91 . . 61 . 25 Volleys Fired 1917 | 3 18 23 . 59 77 85 24 22 27 14 1 26 13 4 85 69 36 8 43 80 93 34 8 2 15 18 5 30 18 8 43 44 52 5 85 81 417 189 53 Largest 3 | 2 2 2 . 2 2 2 2 2 2 2 1 2 2 2 2 2 2 2 2 2 2 2 2 2 1 1 1 2 1 1 2 2 2 1 2 2 2 3 3 Hottest 300 | 90 130 130 . 100 110 128 96 145 145 120 30 160 160 114 170 155 150 145 150 188 163 188 156 156 90 46 46 196 46 88 196 203 211 113 240 240 214 242 300 Shots Fired 2804 | 6 36 46 . 115 153 163 43 43 42 25 1 41 21 8 142 115 56 14 71 146 117 65 15 3 15 18 5 32 18 8 53 69 71 5 130 91 450 277 75 Gun 712 | 6 36 46 . 112 153 118 . . 16 12 . 20 4 . 63 . . . . . 22 . . . . . . . . . . . . . . . . 68 36 Cannon 1602 | . . . . . . 42 43 43 19 . . 2 12 8 58 98 28 12 60 146 95 65 12 3 1 . . 4 . 8 20 65 58 5 102 77 365 115 36 Launcher 406 | . . . . . . 3 . . 7 13 . 19 5 . . 4 28 . 10 . . . 3 . 14 18 5 28 18 . 33 4 13 . 5 . 82 92 2 Special 84 | . . . . 3 . . . . . . 1 . . . 21 13 . 2 1 . . . . . . . . . . . . . . . 23 14 3 2 1 Kinetic 276 | . . 2 . 58 . 34 39 . . . . . 2 8 44 . . . 14 20 49 . . . . . . . . . . . . . . . . 1 5 Thermal 1005 | 6 36 44 . 57 . 8 4 43 19 . . 2 10 . 49 92 20 12 38 79 46 33 . . 1 . . 4 . . 20 19 30 5 31 15 190 61 31 Explosive 172 | . . . . . . . . . . 4 . 7 . . . . 3 . 1 . . . 3 . 14 18 5 28 18 . 33 2 13 . 3 . 9 11 . Electromagnetic 1226 | . . . . . 153 121 . . 23 21 . 32 9 . 49 10 33 . 17 47 22 32 12 3 . . . . . 8 . 48 28 . 73 62 248 173 2 Slashing 52 | . . . . . . . . . . . . . . . . . . . . . . . . . . . . . . . . . . . . . . 24 28 Entropic 13 | . . . . . . . . . . . . . . . . . . . . . . . . . . . . . . . . . . . . . . 5 8 Robot Hit Streak 56 | 4 18 13 . 9 30 26 7 5 7 4 5 7 11 1 27 13 14 6 7 14 19 11 7 4 5 6 . 7 3 2 15 18 10 . 27 24 56 26 22 Robot Miss Streak 9 | 1 7 6 . 3 6 6 3 2 2 2 . 2 2 4 4 3 2 1 6 9 3 2 4 . . . . 2 . 1 2 4 5 . 2 1 2 3 2 Penetration Max 1 | . . . . . . . . . . . . . . 1 1 . . . . . . . . . . . . . . . . . . . . . . . 1 Secondary Targets 13 | . . 3 . 2 4 2 . . . . . . . . . . . . . . . . . . . . . . . . . . . . . . . . 2 Max Gunslinging Chain 1 | . . 1 . 1 1 1 . . . . . . . . . . . . . . . . . . . . . . . . . . . . . . . . 1 Capacitor 474 | . . . . . . . . . . . . . . . . . . . . . . . . . . . . . . . . . . . . 54 361 59 . Shots Hit Robots 1887 | 5 32 41 . 71 120 116 26 28 24 9 1 20 11 6 120 83 21 11 30 97 75 45 9 2 1 1 . 2 2 5 21 40 31 . 90 69 347 218 57 Core Hits 1361 | 2 37 33 . 23 53 57 6 11 24 22 . 21 6 3 50 24 55 2 37 43 19 19 27 1 34 36 14 31 27 5 45 51 33 . 21 23 203 220 43 Critical Hits 101 | . . . . 2 2 5 3 1 . . . . 1 3 24 . . . 2 . 14 2 . . . . . . . . . 4 . . 4 3 21 8 2 Critical Kills 30 | . . . . . 1 2 1 1 . . . . 1 2 4 . . . 1 . 4 1 . . . . . . . . . 3 . . . 2 2 4 1 Critical Parts Destroyed 37 | . . . . 2 1 3 . . . . . . . 1 8 . . . 1 . 1 . . . . . . . . . . 1 . . 4 . 11 3 1 Melee Attacks 91 | . . . . . . . 6 . . 10 . 18 3 7 47 . . . . . . . . . . . . . . . . . . . . . . . . Impact . | . . . . . . . . . . . . . . . . . . . . . . . . . . . . . . . . . . . . . . . . Slashing 91 | . . . . . . . 6 . . 10 . 18 3 7 47 . . . . . . . . . . . . . . . . . . . . . . . . Piercing . | . . . . . . . . . . . . . . . . . . . . . . . . . . . . . . . . . . . . . . . . Sneak Attacks 17 | . . . . . . . 6 . . . . . . 4 7 . . . . . . . . . . . . . . . . . . . . . . . . Combat Hostiles . | . . . . . . . . . . . . . . . . . . . . . . . . . . . . . . . . . . . . . . . . Follow-up Attacks . | . . . . . . . . . . . . . . . . . . . . . . . . . . . . . . . . . . . . . . . . Damage Inflicted 123140 | 56 508 407 . 1064 2618 3065 1302 758 1142 1053 . 1659 456 584 3565 2786 2757 263 1707 3617 2060 2031 1005 53 3043 3312 816 3187 2152 195 4903 2598 3056 . 3421 2549 25563 26741 7088 Guns 10977 | 56 295 407 . 1064 2534 2019 . . 183 154 . 221 57 . 795 . . . . . 31 . . . . . . . . . . . . . . . . 1800 1361 Cannons 46117 | . . . . . . 479 597 758 311 . . 31 168 85 1198 2268 465 263 631 3617 2029 1763 300 53 . . . 33 . 195 521 1515 1082 . 2548 2549 14757 5265 2636 Explosions 63656 | . 213 . . . 84 567 . . 648 899 . 1407 201 . 445 489 2292 . 1076 . . 268 705 . 3043 3312 816 3154 2152 . 4382 1083 1974 . 873 . 10806 19676 3091 Melee 2153 | . . . . . . . 705 . . . . . 30 499 919 . . . . . . . . . . . . . . . . . . . . . . . . Ramming 29 | . . . . . . . . . . . . . . . . 29 . . . . . . . . . . . . . . . . . . . . . . . Kinetic 3899 | . . 17 . 576 . 369 516 . . . . . 11 85 463 . . . 84 392 1237 . . . . . . . . . . . . . . . . 33 116 Thermal 37759 | 56 295 390 . 488 84 419 81 758 311 51 . 77 157 . 1189 2398 683 263 473 2088 792 1229 . . . . . 33 . . 521 409 339 . 732 549 11849 5574 5471 Explosive 27784 | . 208 . . . . . . . . 426 . 628 . . . . 526 . 184 . . . 705 . 2770 3312 816 3154 2152 . 4382 718 1974 . 705 . 1936 3188 . Electromagnetic 41517 | . 5 . . . 2534 2277 . . 831 576 . 954 258 . 994 359 1548 . 966 1137 31 802 300 53 273 . . . . 195 . 1471 743 . 1984 2000 11778 9308 140 Impact . | . . . . . . . . . . . . . . . . . . . . . . . . . . . . . . . . . . . . . . . . Slashing 3689 | . . . . . . . 705 . . . . . 30 499 919 . . . . . . . . . . . . . . . . . . . . . . 707 829 Piercing . | . . . . . . . . . . . . . . . . . . . . . . . . . . . . . . . . . . . . . . . . Entropic 8463 | . . . . . . . . . . . . . . . . . . . . . . . . . . . . . . . . . . . . . . 7931 532 Highest Corruption 20 | . . . . . 5 3 1 4 4 5 5 6 1 17 17 19 12 11 12 9 20 20 13 . 5 . . . . . 2 1 2 2 . 2 4 . . Average Corruption 7 | . . . . . 5 2 1 1 4 4 5 5 1 13 17 17 11 5 3 4 18 17 5 . 4 . . . . . 2 1 1 2 . 1 3 . . Corruption Purged 41 | . . . . . . 2 . . . . . . . . . 7 1 11 . . . 7 13 . . . . . . . . . . . . . . . . Effects 832 | . . . . . 4 28 4 3 25 33 2 42 3 11 152 147 39 44 3 20 59 90 35 . 1 . . . . . 6 . 6 1 . . 74 . . Message Errors 156 | . . . . . . 7 3 1 6 7 . 9 . 3 15 27 9 15 . 3 9 14 10 . 1 . . . . . 1 . 3 . . . 13 . . Matter Fused 151 | . . . . . 1 2 . 1 8 8 . 14 . 1 27 24 4 10 . 5 8 19 6 . . . . . . . . . . . . . 13 . . Heat Flow Errors 86 | . . . . . . 4 . . 2 4 1 8 . 5 7 20 5 4 . 5 2 4 4 . . . . . . . 2 . . . . . 9 . . Energy Discharges 68 | . . . . . . 2 . . 4 4 1 5 2 . 8 9 2 9 2 . 2 9 1 . . . . . . . 1 . . 1 . . 6 . . Parts Rejected 6 | . . . . . . . . . . . . . . . 1 1 . . . . 1 . 1 . . . . . . . . . . . . . 2 . . Data Loss (minor) 74 | . . . . . 1 3 . 1 4 5 . 4 . . 8 13 3 4 . 1 2 7 7 . . . . . . . 2 . 1 . . . 8 . . Data Loss (major) 27 | . . . . . . . . . . 2 . 2 . . 4 6 . 2 . 1 4 3 3 . . . . . . . . . . . . . . . . Misfires 18 | . . . . . . . . . . 2 . . . . 7 2 . . . . 2 3 2 . . . . . . . . . . . . . . . . Alerts 8 | . . . . . . . . . . . . . . . 2 1 3 . . . . 2 . . . . . . . . . . . . . . . . . Misdirections 61 | . . . . . . . . . . . . . . 2 23 12 5 . . . 6 13 . . . . . . . . . . . . . . . . . Targeting Errors 149 | . . . . . 2 8 1 . 1 . . . 1 . 47 26 6 . 1 3 19 12 1 . . . . . . . . . 2 . . . 19 . . Weapon Failures 28 | . . . . . . 2 . . . 1 . . . . 3 6 2 . . 2 4 4 . . . . . . . . . . . . . . 4 . . Overload Shots . | . . . . . . . . . . . . . . . . . . . . . . . . . . . . . . . . . . . . . . . . Overflow Damage 5421 | . . . . . . 58 147 24 . . . 85 10 206 197 132 75 . . 117 35 20 9 . 40 185 22 111 107 . 460 33 135 . 132 163 862 1205 851 Projectiles 2022 | . . . . . . 42 . 24 . . . . 10 . 15 37 11 . . 117 35 20 . . . . . . . . 58 . . . 129 163 683 336 342 Explosions 2855 | . . . . . . 16 . . . . . 85 . . . 86 64 . . . . . 9 . 40 185 22 111 107 . 402 33 135 . 3 . 179 869 509 Melee 544 | . . . . . . . 147 . . . . . . 206 182 9 . . . . . . . . . . . . . . . . . . . . . . . Knockbacks 15 | . . . . . . 2 . . . . . . . . 2 1 . . 3 6 . . . . . . . . . . . . . . . . . . 1 Impact 1 | . . . . . . . . . . . . . . . . 1 . . . . . . . . . . . . . . . . . . . . . . . Kinetic 13 | . . . . . . 2 . . . . . . . . 2 . . . 3 5 . . . . . . . . . . . . . . . . . . 1 Secondary 1 | . . . . . . . . . . . . . . . . . . . . 1 . . . . . . . . . . . . . . . . . . . Self-Inflicted Damage 1543 | . 83 . . . . 106 . . 9 34 . 2 . . 106 75 45 . 135 . . 67 47 . . . . . 4 . . . . . 3 . 427 400 . Shots 65 | . 2 . . . . 6 . . 1 2 . 1 . . 2 2 5 . 8 . . 1 2 . . . . . 1 . . . . . 1 . 15 16 . Rammed 3 | 1 1 . . . . . . . . . . . . . . 1 . . . . . . . . . . . . . . . . . . . . . . . Targets Rammed 3 | 1 1 . . . . . . . . . . . . . . 1 . . . . . . . . . . . . . . . . . . . . . . . Kicked . | . . . . . . . . . . . . . . . . . . . . . . . . . . . . . . . . . . . . . . . . Crushed . | . . . . . . . . . . . . . . . . . . . . . . . . . . . . . . . . . . . . . . . . Highest Temperature 413 | 90 197 199 . 363 7 298 172 93 210 237 223 236 251 254 297 370 332 256 374 413 304 310 252 60 34 . 8 264 16 18 297 138 309 108 403 334 253 79 93 Average Temperature 98 | 47 92 125 . 90 3 98 97 20 68 99 120 58 121 106 76 121 135 76 115 123 60 118 72 28 19 . 4 53 6 9 117 48 114 42 70 104 71 35 48 Received Heat Transfer 3886 | . 135 81 . 219 261 321 . . 18 144 . 174 36 . 243 39 95 9 555 231 . 27 39 . . . . . . . 58 55 14 . 197 75 358 340 162 Effects 38 | . . . . 5 . . . . . . . . . . 4 9 3 4 4 2 1 . . . . . . . . . . . . . 3 3 . . . Shutdowns 4 | . . . . 1 . . . . . . . . . . . . 1 . 1 1 . . . . . . . . . . . . . . . . . . . Energy Bleed 8 | . . . . . . . . . . . . . . . 2 1 1 1 1 1 1 . . . . . . . . . . . . . . . . . . Interference 25 | . . . . 4 . . . . . . . . . . 2 8 1 3 1 . . . . . . . . . . . . . . . 3 3 . . . Short Circuit 1 | . . . . . . . . . . . . . . . . . . . 1 . . . . . . . . . . . . . . . . . . . . Siege Activations . | . . . . . . . . . . . . . . . . . . . . . . . . . . . . . . . . . . . . . . . . Robots Corrupted 168 | . . . . . 5 5 . . 1 1 . 6 1 . 1 1 6 . 7 2 . 3 1 . 2 . . . . . . 7 4 . 13 7 56 39 . Combat Hostiles 157 | . . . . . 5 5 . . 1 1 . 6 1 . . 1 6 . 7 1 . 1 . . 2 . . . . . . 6 4 . 13 7 55 35 . Parts Fried 383 | . . . . . 23 12 . . 4 2 . 6 3 . 8 2 10 . 9 13 . 8 3 . 1 . . . . . . 11 7 . 20 22 133 86 . Impact Corruptions 1 | . . . . . . . . . . . . . . . . 1 . . . . . . . . . . . . . . . . . . . . . . . Robots Melted 8 | . . . . . . . . . . . . . . . . . . . . . . 1 . . . . . . . . 1 . . . 1 . 5 . . Combat Hostiles 7 | . . . . . . . . . . . . . . . . . . . . . . . . . . . . . . . 1 . . . 1 . 5 . . Parts Melted 47 | . . 2 . . . . . 2 . 1 . . 1 . 3 4 1 1 2 1 . 2 . . . . . . . . . 4 . . . 3 12 4 4 Heat Transferred 31667 | 149 360 497 . 1149 150 335 111 1268 509 50 . 100 250 . 1938 3138 524 422 720 1925 1200 1125 . . . . . 50 . . 600 435 335 . 592 407 6832 3440 3056 Parts Sabotaged 3 | . . . . . . . . . . . . . . . . . . . . . . . . . . . . . . . . . . . . . . 3 . Parts Stolen 1 | . . . . . . . . . 1 . . . . . . . . . . . . . . . . . . . . . . . . . . . . . . Parts Stripped . | . . . . . . . . . . . . . . . . . . . . . . . . . . . . . . . . . . . . . . . . Power Chain Reactions 42 | . . . . . 2 5 . . . 1 . 1 . . 2 2 5 . 2 . . . . . . . . . . . . . . . . . 12 9 1 Missiles Intercepted . | . . . . . . . . . . . . . . . . . . . . . . . . . . . . . . . . . . . . . . . . Alert | -11 -10 -10 -10 -9 -8 -7 -7 -7 -7 -7 -7 -6 -6 -6 -6 -6 -6 -6 -6 -5 -5 -5 -5 -5 -5 -4 -4 -4 -4 -4 -3 -3 -3 -3 -2 -2 -2 -1 -1 ------- Run | Scr Mat Min Exi Min Mat Fac Was Fac Low Low Dat Pro Fac Was Fac Ext Cet Arc Hub Fac Was Fac Upp Upp War Pro Fac Upp Upp Zhi Pro Res Arm Lab Res Tes Sec Acc Com Peak Influence 4705 | 5 225 207 . 213 540 720 271 959 . . . . 174 35 1004 922 774 300 1180 734 271 739 . . . . 632 . . . . 768 1417 . 261 445 2951 4705 3530 Average Influence 552 | 2 69 52 . 69 262 398 173 621 . . . . 79 32 485 648 490 80 526 555 131 348 . . . . 507 . . . . 367 956 . 108 308 1170 2986 3307 Maximum Alert Level 5 | . 1 1 . 1 2 3 1 3 . . . . . . 3 3 3 1 4 3 1 3 . . . . 2 . . . . 3 4 . 1 2 5 5 5 Low Security (%) 37 | 100 89 89 . 95 26 . 40 10 . . . . 100 100 31 . . 88 9 . 64 43 . . . . . . . . . 42 . . 77 14 . . . Level 1 21 | . 10 10 . 4 62 55 59 1 . . . . . . 13 18 53 11 22 4 35 14 . . . . 22 . . . . 5 . . 22 80 21 . . Level 2 19 | . . . . . 11 38 . 42 . . . . . . 20 19 19 . 51 92 . 33 . . . . 77 . . . . 47 36 . . 5 37 . . Level 3 11 | . . . . . . 6 . 46 . . . . . . 34 62 27 . 11 2 . 9 . . . . . . . . . 4 12 . . . 9 . . Level 4 1 | . . . . . . . . . . . . . . . . . . . 5 . . . . . . . . . . . . . 50 . . . 4 . . Level 5 5 | . . . . . . . . . . . . . . . . . . . . . . . . . . . . . . . . . . . . . 27 28 100 High Security 2 | . . . . . . . . . . . . . . . . . . . . . . . . . . . . . . . . . . . . . . 71 . Max Security . | . . . . . . . . . . . . . . . . . . . . . . . . . . . . . . . . . . . . . . . . Squads Dispatched 168 | . 1 . . . 3 9 . 6 . . . . 3 . 12 3 . . 7 7 . 7 . . . . 1 . 1 . 1 7 7 . 1 3 34 46 9 Investigation 25 | . 1 . . . 1 6 . 2 . . . . 1 . 1 1 . . 1 2 . . . . . . . . 1 . . 2 . . . . 2 1 3 Extermination 25 | . . . . . . 3 . 2 . . . . 1 . 2 . . . 1 2 . 3 . . . . 1 . . . . . 2 . . 2 5 . 1 Reinforcement 41 | . . . . . 2 . . 2 . . . . 1 . 7 2 . . 3 3 . 4 . . . . . . . . . 5 1 . 1 1 6 3 . Assault 55 | . . . . . . . . . . . . . . . 2 . . . 2 . . . . . . . . . . . 1 . 4 . . . 7 34 5 Garrison 7 | . . . . . . . . . . . . . . . . . . . . . . . . . . . . . . . . . . . . . 2 5 . Intercept 15 | . . . . . . . . . . . . . . . . . . . . . . . . . . . . . . . . . . . . . 12 3 . Construction Impeded 12 | . . . . . 1 . . . . . . . . . 5 2 . . 1 . . . . . . . . . . . . . . . . . 1 2 . Haulers Reinforced 9 | . . . . . . . . 1 . . . . . . 1 . . . . 2 . 2 . . . . . . . . . 1 . . . . 1 1 . Stealth | -11 -10 -10 -10 -9 -8 -7 -7 -7 -7 -7 -7 -6 -6 -6 -6 -6 -6 -6 -6 -5 -5 -5 -5 -5 -5 -4 -4 -4 -4 -4 -3 -3 -3 -3 -2 -2 -2 -1 -1 --------- Run | Scr Mat Min Exi Min Mat Fac Was Fac Low Low Dat Pro Fac Was Fac Ext Cet Arc Hub Fac Was Fac Upp Upp War Pro Fac Upp Upp Zhi Pro Res Arm Lab Res Tes Sec Acc Com Distress Signals 36 | . . . . . 2 1 . . . . . . . . 5 2 2 . . 1 . 1 . . . . . . . . . 5 2 . 4 . 4 3 4 Communications Jammed 19 | . . . . . . . . . . . . . . . . . . . . . . . . . . . . . . . . 5 13 . . 1 . . . Distress Signals 19 | . . . . . . . . . . . . . . . . . . . . . . . . . . . . . . . . 5 13 . . 1 . . . Times Spotted 969 | . 9 7 . 16 33 33 6 16 18 16 . 18 7 5 47 26 29 7 49 31 7 19 10 3 17 19 5 11 11 . 23 22 25 . 36 20 134 192 42 Peak Tracking Total 20 | . 3 3 . 4 5 5 5 5 9 5 . 5 2 2 9 5 8 2 18 4 5 4 7 2 9 6 4 7 4 . 7 4 11 . 6 3 11 20 14 Tactical Retreats 51 | . . . . 2 2 2 . . 3 1 . 4 . . 5 1 . . 2 4 1 . . . 1 1 1 . . . 3 3 . . 2 1 6 5 1 Traps | -11 -10 -10 -10 -9 -8 -7 -7 -7 -7 -7 -7 -6 -6 -6 -6 -6 -6 -6 -6 -5 -5 -5 -5 -5 -5 -4 -4 -4 -4 -4 -3 -3 -3 -3 -2 -2 -2 -1 -1 ------- Run | Scr Mat Min Exi Min Mat Fac Was Fac Low Low Dat Pro Fac Was Fac Ext Cet Arc Hub Fac Was Fac Upp Upp War Pro Fac Upp Upp Zhi Pro Res Arm Lab Res Tes Sec Acc Com Traps Triggered 26 | . 1 . . . 1 1 . 4 . . . . 2 . . 1 . . 1 3 . 1 . . 2 . . . . . . . 4 . . 1 1 1 2 Indirectly 3 | . 1 . . . . . . . . . . . . . . . . . . . . . . . 2 . . . . . . . . . . . . . . Trap Hack Attempts . | . . . . . . . . . . . . . . . . . . . . . . . . . . . . . . . . . . . . . . . . Triggered . | . . . . . . . . . . . . . . . . . . . . . . . . . . . . . . . . . . . . . . . . Disarmed 7 | . . . . . 3 . . . . . . . . . . 4 . . . . . . . . . . . . . . . . . . . . . . . Reprogrammed . | . . . . . . . . . . . . . . . . . . . . . . . . . . . . . . . . . . . . . . . . Reused 3 | . . . . . . . . . . . . . . . . . . . . . . . . . 3 . . . . . . . . . . . . . . Traps Extracted . | . . . . . . . . . . . . . . . . . . . . . . . . . . . . . . . . . . . . . . . . Installed 1 | . . . . . . . . . . . . . . . . . . . . . . . . . 1 . . . . . . . . . . . . . . Triggered 18 | . . . . 3 . . . . 2 . . . . . 1 . . . . . . . 1 . 10 . . . . . . . . . . . 1 . . Machines | -11 -10 -10 -10 -9 -8 -7 -7 -7 -7 -7 -7 -6 -6 -6 -6 -6 -6 -6 -6 -5 -5 -5 -5 -5 -5 -4 -4 -4 -4 -4 -3 -3 -3 -3 -2 -2 -2 -1 -1 ---------- Run | Scr Mat Min Exi Min Mat Fac Was Fac Low Low Dat Pro Fac Was Fac Ext Cet Arc Hub Fac Was Fac Upp Upp War Pro Fac Upp Upp Zhi Pro Res Arm Lab Res Tes Sec Acc Com Machines Disabled 105 | . 3 . . 2 2 3 . 2 . . . . 2 . 7 8 3 1 13 1 . 5 . 1 2 . . 2 1 1 1 4 7 1 1 3 20 6 3 Max in Single Turn 5 | . 2 . . 1 1 2 . 1 . . . . 1 . 1 2 2 . 5 1 . 4 . 1 2 . . 2 1 1 1 1 2 1 1 1 2 1 1 Garrison Access 8 | . . . . . . . . 1 . . . . 1 . 1 . . . . . . . . . . . . . . . . 2 . . 1 1 1 . . Network Hub 2 | . . . . . . . . . . . . . . . . . . . 2 . . . . . . . . . . . . . . . . . . . . Energy Cycler 1 | . . . . . . . . . . . . . . . . 1 . . . . . . . . . . . . . . . . . . . . . . . Machines Sabotaged . | . . . . . . . . . . . . . . . . . . . . . . . . . . . . . . . . . . . . . . . . Garrisons Compromised . | . . . . . . . . . . . . . . . . . . . . . . . . . . . . . . . . . . . . . . . . Overloaded Fab Kills . | . . . . . . . . . . . . . . . . . . . . . . . . . . . . . . . . . . . . . . . . Fab Network Shutdowns . | . . . . . . . . . . . . . . . . . . . . . . . . . . . . . . . . . . . . . . . . Hacking | -11 -10 -10 -10 -9 -8 -7 -7 -7 -7 -7 -7 -6 -6 -6 -6 -6 -6 -6 -6 -5 -5 -5 -5 -5 -5 -4 -4 -4 -4 -4 -3 -3 -3 -3 -2 -2 -2 -1 -1 --------- Run | Scr Mat Min Exi Min Mat Fac Was Fac Low Low Dat Pro Fac Was Fac Ext Cet Arc Hub Fac Was Fac Upp Upp War Pro Fac Upp Upp Zhi Pro Res Arm Lab Res Tes Sec Acc Com Machines Accessed 138 | . 5 . 4 1 6 11 . 7 1 1 4 . 5 . 10 17 5 . 4 3 . 4 1 2 1 . 2 1 1 9 . 1 1 2 . 10 13 1 5 Terminals 77 | . 4 . . 1 5 3 . 4 . . . . 2 . 6 16 5 . 4 1 . 2 . . . . 1 1 1 . . . . . . 6 11 1 3 Fabricators 9 | . . . . . . 1 . 1 . . . . 1 . 1 . . . . 2 . 1 . . . . . . . . . . 1 . . 1 . . . Repair Stations 6 | . . . . . . 1 . 1 . . . . . . . . . . . . . 1 . . . . . . . . . . . . . 1 1 . 1 Recycling Units 13 | . 1 . . . 1 5 . . . . . . 1 . 2 1 . . . . . . . . . . 1 . . . . . . . . . . . 1 Scanalyzers 3 | . . . . . . . . . . . . . . . . . . . . . . . . . . . . . . . . 1 . . . 1 1 . . Garrison Access 5 | . . . . . . 1 . 1 . . . . 1 . 1 . . . . . . . . . . . . . . . . . . . . 1 . . . Total Hacks 563 | . 18 . 48 5 13 18 . 20 1 1 27 . 17 . 21 60 19 . 12 15 . 28 1 2 1 . 7 9 6 48 . 8 2 20 . 44 74 3 15 Successful 333 | . 11 . 48 3 5 9 . 11 1 1 27 . 11 . 7 22 9 . 7 4 . 10 1 2 1 . 4 7 2 48 . 6 . 20 . 22 28 1 5 Failed 230 | . 7 . . 2 8 9 . 9 . . . . 6 . 14 38 10 . 5 11 . 18 . . . . 3 2 4 . . 2 2 . . 22 46 2 10 Catastrophic 52 | . . . . . 1 1 . . . . . . . . 3 9 2 . 1 3 . 4 . . . . 1 1 2 . . . 1 . . 5 13 1 4 Database Lockouts . | . . . . . . . . . . . . . . . . . . . . . . . . . . . . . . . . . . . . . . . . Manual 204 | . 9 . . 5 7 15 . 8 . . . . 7 . 10 43 18 . 7 5 . 11 . . 3 . 1 3 5 . . . . . . 6 36 . 5 Terminals 309 | . 17 . . 5 12 6 . 10 . . . . 6 . 15 59 19 . 12 4 . 14 . . . . 6 9 6 . . . . . . 28 69 3 9 Fabricators 40 | . . . . . . 2 . 5 . . . . 7 . 2 . . . . 11 . 9 . . . . . . . . . . 2 . . 2 . . . Repair Stations 22 | . . . . . . 2 . 3 . . . . . . . . . . . . . 5 . . . . . . . . . . . . . 5 4 . 3 Recycling Units 18 | . 1 . . . 1 6 . . . . . . 2 . 3 1 . . . . . . . . . . 1 . . . . . . . . . . . 3 Scanalyzers 15 | . . . . . . . . . . . . . . . . . . . . . . . . . . . . . . . . 8 . . . 6 1 . . Garrison Access 10 | . . . . . . 2 . 2 . . . . 2 . 1 . . . . . . . . . . . . . . . . . . . . 3 . . . Terminal Hacks 239 | . 8 . 48 3 3 . . 4 1 1 27 . 1 . 3 16 4 . 3 1 . 2 1 2 1 . 3 6 2 48 . . . 20 . 10 19 1 1 Record 124 | . . . 48 . . . . . . . 11 . . . . . 1 . . . . . . 1 . . . 6 1 36 . . . 20 . . . . . Part Schematic 13 | . . . . . . . . 1 . . 6 . . . 1 . . . . . . . . . . . . . 1 4 . . . . . . . . . Robot Schematic 9 | . . . . 2 . . . . . . 7 . . . . . . . . . . . . . . . . . . . . . . . . . . . . Robot Analysis 8 | . 2 . . 1 . . . . . . . . . . . . . . . . . . . . . . 1 . . 4 . . . . . . . . . Prototype ID Bank 18 | . 1 . . . 1 . . . . . 3 . . . . 2 . . . . . . . . . . 1 . . 4 . . . . . 4 2 . . Open Door 12 | . . . . . . . . . 1 1 . . . . 1 1 1 . . . . . 1 1 1 . . . . . . . . . . . 4 . . Level Access Points 1 | . . . . . . . . . . . . . . . . . . . . . . . . . . . . . . . . . . . . . 1 . . Branch Access Points 3 | . . . . . . . . 1 . . . . . . . . . . . . . 1 . . . . 1 . . . . . . . . . . . . Emergency Access Points 4 | . 1 . . . . . . . . . . . . . . . . . 1 . . . . . . . . . . . . . . . . 1 1 . . Terminal Index 1 | . . . . . . . . . . . . . . . . . . . . . . . . . . . . . . . . . . . . . . 1 . Repair Station Index 1 | . . . . . . . . . . . . . . . . . . . . . . . . . . . . . . . . . . . . 1 . . . Alert Level 8 | . . . . . . . . 1 . . . . . . . 2 . . . 1 . . . . . . . . . . . . . . . 1 3 . . Unreport Threat 9 | . . . . . . . . . . . . . . . . 3 2 . . . . . . . . . . . . . . . . . . . 4 . . Locate Traps 10 | . 1 . . . 1 . . 1 . . . . 1 . . 2 . . 1 . . 1 . . . . . . . . . . . . . 1 1 . . Disarm Traps 2 | . . . . . 1 . . . . . . . . . . 1 . . . . . . . . . . . . . . . . . . . . . . . Patrol Status 2 | . 2 . . . . . . . . . . . . . . . . . . . . . . . . . . . . . . . . . . . . . . Recall Investigation 1 | . . . . . . . . . . . . . . . . 1 . . . . . . . . . . . . . . . . . . . . . . . Recall Reinforcements 6 | . . . . . . . . . . . . . . . . 3 . . 1 . . . . . . . . . . . . . . . . . 2 . . Hauler Manifests 5 | . 1 . . . . . . . . . . . . . 1 1 . . . . . . . . . . . . . . . . . . . 1 1 . . Registered Prototypes 1 | . . . . . . . . . . . . . . . . . . . . . . . . . . . . . . . . . . . . 1 . . . Disengage Seal 1 | . . . . . . . . . . . . . . . . . . . . . . . . . . . . . . . . . . . . . . . 1 Fabricator Hacks 10 | . . . . . . . . 2 . . . . 3 . . . . . . 2 . 2 . . . . . . . . . . . . . 1 . . . Load Schematic 5 | . . . . . . . . 1 . . . . 1 . . . . . . 1 . 1 . . . . . . . . . . . . . 1 . . . Build 5 | . . . . . . . . 1 . . . . 2 . . . . . . 1 . 1 . . . . . . . . . . . . . . . . . Repair Station Hacks 10 | . . . . . . 2 . 2 . . . . . . . . . . . . . 4 . . . . . . . . . . . . . 1 1 . . Scan Component 6 | . . . . . . 1 . 1 . . . . . . . . . . . . . 2 . . . . . . . . . . . . . 1 1 . . Repair 4 | . . . . . . 1 . 1 . . . . . . . . . . . . . 2 . . . . . . . . . . . . . . . . . Recycling Unit Hacks 3 | . . . . . . . . . . . . . 1 . 1 . . . . . . . . . . . . . . . . . . . . . . . 1 Retrieve Components 3 | . . . . . . . . . . . . . 1 . 1 . . . . . . . . . . . . . . . . . . . . . . . 1 Scanalyzer 11 | . . . . . . . . . . . . . . . . . . . . . . . . . . . . . . . . 6 . . . 4 1 . . Insert Component 8 | . . . . . . . . . . . . . . . . . . . . . . . . . . . . . . . . 4 . . . 3 1 . . Analyze 3 | . . . . . . . . . . . . . . . . . . . . . . . . . . . . . . . . 2 . . . 1 . . . Garrison Access Hacks 3 | . . . . . . . . . . . . . 1 . 1 . . . . . . . . . . . . . . . . . . . . 1 . . . Seal Access 3 | . . . . . . . . . . . . . 1 . 1 . . . . . . . . . . . . . . . . . . . . 1 . . . Unauthorized Hacks 151 | . 6 . . . 8 22 . 10 . . . . 10 . 5 15 12 . 10 6 . 9 . . . . 2 2 . . . . . . . 11 15 . 8 Terminals 46 | . 2 . . . 1 1 . 1 . . . . 4 . 2 6 5 . 4 1 . 2 . . . . 1 1 . . . . . . . 5 7 . 3 Track 14 | . 1 . . . . . . . . . . . . . . 2 3 . 1 . . . . . . . . . . . . . . . . 3 3 . 1 Assimilate 4 | . . . . . 1 . . . . . . . 2 . . 1 . . . . . . . . . . . . . . . . . . . . . . . Botnet 27 | . 1 . . . . 1 . 1 . . . . 2 . 2 3 2 . 2 1 . 2 . . . . 1 1 . . . . . . . 2 4 . 2 Detonate 1 | . . . . . . . . . . . . . . . . . . . 1 . . . . . . . . . . . . . . . . . . . . Fabricators 2 | . . . . . . . . 1 . . . . 1 . . . . . . . . . . . . . . . . . . . . . . . . . . Prioritize 2 | . . . . . . . . 1 . . . . 1 . . . . . . . . . . . . . . . . . . . . . . . . . . Repair Stations . | . . . . . . . . . . . . . . . . . . . . . . . . . . . . . . . . . . . . . . . . Recycling Units 7 | . 1 . . . 1 5 . . . . . . . . . . . . . . . . . . . . . . . . . . . . . . . . . Tunnel 7 | . 1 . . . 1 5 . . . . . . . . . . . . . . . . . . . . . . . . . . . . . . . . . Scanalyzers . | . . . . . . . . . . . . . . . . . . . . . . . . . . . . . . . . . . . . . . . . Garrison Access 2 | . . . . . . 1 . 1 . . . . . . . . . . . . . . . . . . . . . . . . . . . . . . . Watchers 1 | . . . . . . 1 . . . . . . . . . . . . . . . . . . . . . . . . . . . . . . . . . Jam 1 | . . . . . . . . 1 . . . . . . . . . . . . . . . . . . . . . . . . . . . . . . . Data Cores Recovered 1 | . . . . . . . . . . . . . . . 1 . . . . . . . . . . . . . . . . . . . . . . . . Used 1 | . . . . . . . . . . . . . . . 1 . . . . . . . . . . . . . . . . . . . . . . . . Hacking Detections 100 | . 4 . . 1 5 6 . 6 . . . . 4 . 9 17 5 . 4 3 . 4 . . . . 2 1 1 . . 1 1 . . 9 11 1 5 Full Trace Events 13 | . . . . . 1 1 . . . . . . 1 . 1 1 . . . 1 . . . . . . . 1 1 . . . . . . . 1 1 3 Feedback Events 5 | . . . . . . 1 . . . . . . . . . 1 . . . . . . . . . . . . . . . . . . . . 1 . 2 Corruption 5 | . . . . . . 1 . . . . . . . . . 1 . . . . . . . . . . . . . . . . . . . . 1 . 2 Feedback Blocked . | . . . . . . . . . . . . . . . . . . . . . . . . . . . . . . . . . . . . . . . . Robot Schematics Acquired 9 | . . . . 2 . . . . . . 7 . . . . . . . . . . . . . . . . . . . . . . . . . . . . Robots Built 8 | . . . . . . . . 1 . . . . 4 . . . . . . 3 . . . . . . . . . . . . . . . . . . . Matter 1074 | . . . . . . . . 153 . . . . 636 . . . . . . 285 . . . . . . . . . . . . . . . . . . . Time 486 | . . . . . . . . 81 . . . . 253 . . . . . . 152 . . . . . . . . . . . . . . . . . . . Total Robot Build Rating 40 | . . . . . . . . 1 . . . . 24 . . . . . . 15 . . . . . . . . . . . . . . . . . . . Part Schematics Acquired 16 | . . . . . . . . 1 . . 6 . . . 1 . . . . . . . . . . . . . 1 4 . 2 . . . 1 . . . Parts Built 1 | . . . . . . . . . . . . . . . . . . . . . . 1 . . . . . . . . . . . . . . . . . Matter 318 | . . . . . . . . . . . . . . . . . . . . . . 318 . . . . . . . . . . . . . . . . . Time 84 | . . . . . . . . . . . . . . . . . . . . . . 84 . . . . . . . . . . . . . . . . . Total Part Build Rating 6 | . . . . . . . . . . . . . . . . . . . . . . 6 . . . . . . . . . . . . . . . . . Parts Repaired 4 | . . . . . . 1 . 1 . . . . . . . . . . . . . 2 . . . . . . . . . . . . . . . . . Time 142 | . . . . . . 38 . 44 . . . . . . . . . . . . . 60 . . . . . . . . . . . . . . . . . Parts Recycled . | . . . . . . . . . . . . . . . . . . . . . . . . . . . . . . . . . . . . . . . . Recycled Matter . | . . . . . . . . . . . . . . . . . . . . . . . . . . . . . . . . . . . . . . . . Retrieved Matter . | . . . . . . . . . . . . . . . . . . . . . . . . . . . . . . . . . . . . . . . . Retrieved Components 4 | . . . . . . . . . . . . . 2 . 1 . . . . . . . . . . . . . . . . . . . . . . . 1 Parts Scanalyzed 2 | . . . . . . . . . . . . . . . . . . . . . . . . . . . . . . . . 2 . . . . . . . Part Schematics Acquired 3 | . . . . . . . . . . . . . . . . . . . . . . . . . . . . . . . . 2 . . . 1 . . . Parts Damaged . | . . . . . . . . . . . . . . . . . . . . . . . . . . . . . . . . . . . . . . . . Bothacking | -11 -10 -10 -10 -9 -8 -7 -7 -7 -7 -7 -7 -6 -6 -6 -6 -6 -6 -6 -6 -5 -5 -5 -5 -5 -5 -4 -4 -4 -4 -4 -3 -3 -3 -3 -2 -2 -2 -1 -1 ------------ Run | Scr Mat Min Exi Min Mat Fac Was Fac Low Low Dat Pro Fac Was Fac Ext Cet Arc Hub Fac Was Fac Upp Upp War Pro Fac Upp Upp Zhi Pro Res Arm Lab Res Tes Sec Acc Com Used RIF Installer . | . . . . . . . . . . . . . . . . . . . . . . . . . . . . . . . . . . . . . . . . Robots Hacked 42 | . . . . . . . . . . . 1 . . . . 1 . 2 1 . . . . . . . . . . . . . . . 21 10 3 2 1 Non-combat 5 | . . . . . . . . . . . . . . . . . . 1 . . . . . . . . . . . . . . . . . 4 . . . Combat 37 | . . . . . . . . . . . 1 . . . . 1 . 1 1 . . . . . . . . . . . . . . . 21 6 3 2 1 Robot Hacks Applied 43 | . . . . . . . . . . . 1 . . . . 1 . 2 1 . . . . . . . . . . . . . . . 21 11 3 2 1 parse_system 42 | . . . . . . . . . . . 1 . . . . 1 . 2 1 . . . . . . . . . . . . . . . 21 10 3 2 1 find_scanalyzer 1 | . . . . . . . . . . . . . . . . . . . . . . . . . . . . . . . . . . . . 1 . . . Relay Couplers Released 11 | . . . . . . . . . . . . . . . . . . . . . . . . . . . . . . . . 5 . . 6 . . . . Machine Destruction 4 | . . . . . . . . . . . . . . . . . . . . . . . . . . . . . . . . 1 . . 3 . . . . Programmers 7 | . . . . . . . . . . . . . . . . . . . . . . . . . . . . . . . . 4 . . 3 . . . . Robots Rewired 18 | . . . . . . . . . 2 . . . . . . 6 . . . . . . 2 . . 2 . . . . 2 . 4 . . . . . . Allies Hacked 10 | . . . . . . . . . . . . . . 2 2 . . . . . . 3 . . . . . . . . 2 . 1 . . . . . . Hacks Repelled . | . . . . . . . . . . . . . . . . . . . . . . . . . . . . . . . . . . . . . . . . Allies | -11 -10 -10 -10 -9 -8 -7 -7 -7 -7 -7 -7 -6 -6 -6 -6 -6 -6 -6 -6 -5 -5 -5 -5 -5 -5 -4 -4 -4 -4 -4 -3 -3 -3 -3 -2 -2 -2 -1 -1 -------- Run | Scr Mat Min Exi Min Mat Fac Was Fac Low Low Dat Pro Fac Was Fac Ext Cet Arc Hub Fac Was Fac Upp Upp War Pro Fac Upp Upp Zhi Pro Res Arm Lab Res Tes Sec Acc Com Total Allies 143 | . . 2 . . 1 . 20 1 2 . . 1 5 21 2 14 5 . . 3 19 . 2 . . 2 . . . . 2 . 4 . . . . 3 34 Largest Group 25 | . . 2 2 . 1 1 19 15 6 2 . 1 5 25 24 12 8 4 3 . 19 18 5 2 . 2 2 . . . 2 . 4 . . . . . 15 Highest-Rated Group 1107 | . . 46 46 . 26 26 487 370 174 52 . 94 226 1107 1087 504 509 369 282 . 696 642 207 58 . 97 97 . . . 95 . 224 . . . . . 668 Highest-Rated Ally 243 | . . 31 31 . 26 26 35 33 32 32 . 94 54 129 129 156 156 94 94 . 50 47 46 29 . 49 49 . . . 48 . 56 . . . . . 243 Total Orders 151 | . . . . . . 2 . 1 . . . . . . . . . . 1 . . 3 22 30 18 24 2 22 18 . . . 2 . 1 5 . . . STAY 3 | . . . . . . . . . . . . . . . . . . . . . . . 2 . . . . . . . . . 1 . . . . . . GOTO 50 | . . . . . . 1 . . . . . . . . . . . . 1 . . . 2 8 11 11 . 5 8 . . . . . . 3 . . . FOLLOW 20 | . . . . . . 1 . . . . . . . . . . . . . . . . 3 3 1 3 . 4 4 . . . 1 . . . . . . AID 1 | . . . . . . . . 1 . . . . . . . . . . . . . . . . . . . . . . . . . . . . . . . EXPLORE 16 | . . . . . . . . . . . . . . . . . . . . . . 3 4 2 3 2 . . . . . . . . 1 1 . . . RETURN 61 | . . . . . . . . . . . . . . . . . . . . . . . 11 17 3 8 2 13 6 . . . . . . 1 . . . Ally Attacks 1502 | . . . . . . . 84 139 32 9 . 14 1 188 128 133 68 14 43 . 69 138 77 72 4 83 14 48 19 . 13 . 60 . . . . . 52 Total Damage 35270 | . . . . . . . 2699 1914 477 284 . 284 52 3460 4796 2752 1653 551 1537 . 1229 3481 1338 986 72 1450 525 876 254 . 340 . 2358 . . . . . 1902 Kills 215 | . . . . . . . 6 18 4 2 . 3 . 3 33 35 11 3 10 . 1 15 12 13 2 12 2 7 4 . 2 . 10 . . . . . 7 Allies Corrupted 16 | . . . . . . . . 2 . . . . . . 6 . 1 . 1 . . 2 . . . . . 1 . . 1 . . . . . . . 2 Allies Melted . | . . . . . . . . . . . . . . . . . . . . . . . . . . . . . . . . . . . . . . . . Intel | -11 -10 -10 -10 -9 -8 -7 -7 -7 -7 -7 -7 -6 -6 -6 -6 -6 -6 -6 -6 -5 -5 -5 -5 -5 -5 -4 -4 -4 -4 -4 -3 -3 -3 -3 -2 -2 -2 -1 -1 ------- Run | Scr Mat Min Exi Min Mat Fac Was Fac Low Low Dat Pro Fac Was Fac Ext Cet Arc Hub Fac Was Fac Upp Upp War Pro Fac Upp Upp Zhi Pro Res Arm Lab Res Tes Sec Acc Com Robot Analysis Total 8 | . 2 . . 1 . . . . . . . . . . . . . . . . . . . . . . 1 . . 4 . . . . . . . . . Derelict Logs Recovered 13 | . . 1 . 1 . . . . . 2 . 1 . . . . . . . . . . 1 2 . 2 . 2 1 . . . . . . . . . . Drone Launches 77 | . . . . . . . . . . . . . . . . . . . . . . 6 6 20 4 16 2 13 5 . . . . . 3 2 . . . Drone Recoveries 64 | . . . . . . . . . . . . . . . . . . . . . . . 6 20 4 14 4 11 5 . . . . . . . . . . Exploration | -11 -10 -10 -10 -9 -8 -7 -7 -7 -7 -7 -7 -6 -6 -6 -6 -6 -6 -6 -6 -5 -5 -5 -5 -5 -5 -4 -4 -4 -4 -4 -3 -3 -3 -3 -2 -2 -2 -1 -1 ------------- Run | Scr Mat Min Exi Min Mat Fac Was Fac Low Low Dat Pro Fac Was Fac Ext Cet Arc Hub Fac Was Fac Upp Upp War Pro Fac Upp Upp Zhi Pro Res Arm Lab Res Tes Sec Acc Com Turns Passed 47076 | 83 775 1383 810 1131 986 1563 673 938 1547 1730 111 1878 602 277 1944 2530 698 3341 808 1135 695 1369 2765 1384 631 1155 260 1613 1260 353 1297 588 575 381 2225 1053 2852 1128 549 Spaces Moved 23729 | 37 420 653 472 611 480 805 385 592 1011 1112 78 1094 322 171 1045 710 219 173 422 543 331 865 1084 986 451 795 166 1160 938 239 881 295 236 231 1244 600 1106 462 304 Core 6 | 3 . . . . . . . . . . . . . . . . . . . . . . . . . . . . . . . . . . . . . . 3 Treads 916 | 34 420 399 . . . . . . . . . . . . . . . . . . . . . . . . . . . . . . . . . . . 1 62 Legs 760 | . . 254 472 34 . . . . . . . . . . . . . . . . . . . . . . . . . . . . . . . . . . . Wheels 22047 | . . . . 577 480 805 385 592 1011 1112 78 1094 322 171 1045 710 219 173 422 543 331 865 1084 986 451 795 166 1160 938 239 881 295 236 231 1244 600 1106 461 239 Hover . | . . . . . . . . . . . . . . . . . . . . . . . . . . . . . . . . . . . . . . . . Flight . | . . . . . . . . . . . . . . . . . . . . . . . . . . . . . . . . . . . . . . . . Fastest Speed 50 | 50 160 150 120 120 120 130 130 140 140 140 140 130 120 120 120 130 130 130 125 125 120 120 120 130 120 130 130 130 130 130 130 130 140 140 133 130 117 106 100 Average Speed 136 | 151 160 156 168 149 129 144 137 140 140 144 140 149 132 125 129 139 141 136 135 133 129 129 129 130 124 130 130 130 130 130 130 139 146 148 138 134 129 125 126 Slowest Speed 250 | 160 160 160 240 240 130 210 140 150 140 150 150 150 145 130 145 143 250 140 145 200 130 130 130 130 130 130 130 130 130 160 140 150 150 150 185 140 160 165 200 Overloaded Moves . | . . . . . . . . . . . . . . . . . . . . . . . . . . . . . . . . . . . . . . . . Propulsion Burnouts . | . . . . . . . . . . . . . . . . . . . . . . . . . . . . . . . . . . . . . . . . Robots Hopped . | . . . . . . . . . . . . . . . . . . . . . . . . . . . . . . . . . . . . . . . . Cave-ins Triggered 1 | . . . . . . . . . . . . . . . . . . . . . . . . . . . . . . . . . . . . . . 1 . Teleports 4 | . . . . . . . . . . . . . . . . . . . . . . . . . . . . . . . . . 1 . . . . 3 . Exploration Rate (%) 64 | 4 62 98 91 80 51 26 96 19 99 97 69 87 10 90 26 88 79 97 36 14 94 37 99 99 92 99 4 99 96 62 99 11 21 99 46 69 73 20 23 Regions Visited 39 Branch Regions 24 Pre-discovered Areas 13 | . 1 . 1 . 1 5 . . . . 1 . . . . . . . . . . . . . . 1 . . . 3 . . . . . . . . . Known Exits Taken 27 | . . . . . 1 . . 1 1 1 1 1 . . 1 1 1 1 1 . . 1 1 1 1 1 1 1 1 1 1 1 1 1 1 1 1 . . Unknown Exits Taken 6 | 1 1 1 1 1 . . . . . . . . . . . . . . . . . . . . . . . . . . . . . . . . . 1 . Scrap Searched 25 | . . 2 . 1 . . . . 1 2 . 5 . . . . . . . . . . 3 2 . 2 . 1 4 . 2 . . . . . . . . Spaces Dug 242 | . . . . 1 . . 5 . 1 44 . 18 2 3 35 . . . 3 . 15 . . . . . . . . . . 4 12 . 10 . 63 23 3 Terrain Destroyed 2866 | . 44 . . 3 7 38 11 3 1 48 . 82 3 7 58 32 109 . 357 22 28 19 46 . 130 229 82 203 170 . 275 39 113 . 49 2 301 221 134 Melee 68 | . . . . . . . . . . 10 . 18 2 3 35 . . . . . . . . . . . . . . . . . . . . . . . . Projectile 230 | . . . . 3 . 13 11 3 1 . . . 1 4 12 7 3 . 12 22 28 3 . . . . . 3 . . 4 5 20 . 14 2 35 15 9 AOE 2568 | . 44 . . . 7 25 . . . 38 . 64 . . 11 25 106 . 345 . . 16 46 . 130 229 82 200 170 . 271 34 93 . 35 . 266 206 125 Actions | -11 -10 -10 -10 -9 -8 -7 -7 -7 -7 -7 -7 -6 -6 -6 -6 -6 -6 -6 -6 -5 -5 -5 -5 -5 -5 -4 -4 -4 -4 -4 -3 -3 -3 -3 -2 -2 -2 -1 -1 --------- Run | Scr Mat Min Exi Min Mat Fac Was Fac Low Low Dat Pro Fac Was Fac Ext Cet Arc Hub Fac Was Fac Upp Upp War Pro Fac Upp Upp Zhi Pro Res Arm Lab Res Tes Sec Acc Com Total 35713 | 54 490 970 488 708 702 1034 473 655 1098 1181 79 1243 472 213 1380 2115 532 3266 587 785 476 1048 2423 1086 508 897 205 1232 959 278 977 394 393 264 1604 812 2432 804 396 Wait 7797 | . 26 288 . 14 60 68 31 2 17 30 . 61 94 21 110 1268 225 3065 34 60 17 32 1274 93 9 64 22 35 2 . . 5 10 1 63 13 672 4 7 Move 23692 | 36 419 652 471 610 479 805 384 591 1010 1111 77 1093 322 170 1044 709 218 172 421 543 330 864 1083 985 450 794 165 1159 937 238 880 294 235 230 1243 599 1105 461 303 Hop . | . . . . . . . . . . . . . . . . . . . . . . . . . . . . . . . . . . . . . . . . Pick Up 383 | 6 9 2 13 10 27 17 7 7 2 1 . 5 12 1 17 5 3 3 18 26 8 27 6 1 6 . 2 1 1 7 7 7 9 5 16 18 45 18 8 Fast Attach 331 | 7 2 1 1 3 14 5 5 6 7 . . 1 1 2 9 1 12 2 12 15 6 24 7 2 7 . 4 1 . 8 5 8 6 12 62 21 24 23 5 Attach 255 | . 3 4 1 2 7 12 2 . 1 2 . 2 6 . 10 2 1 6 19 7 5 1 3 . 3 . 1 2 . 3 7 5 9 . 10 16 49 44 10 Detach 89 | . 2 . . 2 3 4 1 . 1 . . . . . 2 . . 2 4 2 1 1 1 . 4 . 1 2 . . 1 1 3 1 10 4 20 13 3 Swap 482 | 1 3 . . 5 2 29 7 7 10 13 1 31 11 3 38 47 24 4 10 34 7 15 3 . 1 . 1 . . . 2 17 13 1 45 20 52 22 3 Drop 520 | . 7 . 2 3 33 9 6 12 9 . . 6 10 5 18 5 13 4 26 18 9 47 10 3 12 . 4 2 1 14 12 12 15 9 70 40 48 22 4 Fire 1917 | 3 18 23 . 59 77 85 24 22 27 14 1 26 13 4 85 69 36 8 43 80 93 34 8 2 15 18 5 30 18 8 43 44 52 5 85 81 417 189 53 Melee 91 | . . . . . . . 6 . . 10 . 18 3 7 47 . . . . . . . . . . . . . . . . . . . . . . . . Ram 1 | . . . . . . . . . . . . . . . . 1 . . . . . . . . . . . . . . . . . . . . . . . Kick . | . . . . . . . . . . . . . . . . . . . . . . . . . . . . . . . . . . . . . . . . Crush 2 | 1 1 . . . . . . . . . . . . . . . . . . . . . . . . . . . . . . . . . . . . . . Escape Stasis 24 | . . . . . . . . 8 . . . . . . . 8 . . . . . . . . . . . . . . . . . . . . . 8 . Rewire 125 | . . . . . . . . . 14 . . . . . . . . . . . . . 28 . . 21 . . . . 20 1 41 . . . . . . Trap 1 | . . . . . . . . . . . . . . . . . . . . . . . . . 1 . . . . . . . . . . . . . . Miscellaneous 3 | . . . . . . . . . . . . . . . . . . . . . . 3 . . . . . . . . . . . . . . . . . Route ------- -11/Scrapyard -10/Materials (discovered 3 exits: [*Mat x2] / [*Min]) -10/Mines (discovered 3 exits: [*Mat x2] / *Exi) -10/Exiles (discovered 2 exits: *Min x2) -9/Mines (discovered 2 exits: *Mat x2) -8/Materials (discovered 2 exits: *Fac x2) -7/Factory (discovered 3 exits: *Fac x2 / *Low) -7/Waste -7/Factory (discovered 4 exits: *Fac / Sto / *Low x2) -7/Lower Caves -7/Lower Caves (discovered 2 exits: *Fac / *Dat) -7/Data Miner -6/Proximity Caves -6/Factory -6/Waste -6/Factory (discovered 3 exits: *Fac / *Low / *Ext) -6/Extension (discovered 3 exits: *Fac x2 / *Cet) -6/Cetus (discovered 2 exits: *Fac / *Arc) -6/Archives (discovered 3 exits: *Fac / *Hub x2) -6/Hub_04(d) (discovered 2 exits: *Fac x2) -5/Factory -5/Waste -5/Factory (discovered 4 exits: *Fac x2 / *Upp x2) -5/Upper Caves (discovered 2 exits: *Upp / *War) -5/Upper Caves (discovered 2 exits: *Fac / *War) -5/Warlord -4/Proximity Caves -4/Factory (discovered 2 exits: *Upp x2) -4/Upper Caves -4/Upper Caves (discovered 2 exits: *Res / *Zhi) -4/Zhirov -3/Proximity Caves -3/Research (discovered 3 exits: Res / *Arm / Qua) -3/Armory -3/Lab -2/Research (discovered 3 exits: *Acc x2 / *Tes) -2/Testing (discovered 2 exits: *Acc / *Sec) -2/Section 7 -1/Access -1/Command To Fleet Rendezvous History --------- Turn | Location | Event 6 | -11/Scrapyard | Discovered new exit (range 15) 84 | -11/Scrapyard | Entered Materials 313 | -10/Materials | Build established: Mutant 332 | -10/Materials | Discovered new exit (range 6) 415 | -10/Materials | Discovered new exit (range 5) 627 | -10/Materials | Discovered new exit (range 5) 859 | -10/Materials | Entered Mines 1150 | -10/Mines | Discovered new exit (range 8) 1239 | -10/Mines | Assembled infested the area 1583 | -10/Mines | Learned 4 Materials zone layouts 1630 | -10/Mines | Deemed a non-threat by the Exiles lab entrance 1630 | -10/Mines | Discovered new exit (range 5) 1710 | -10/Mines | Discovered new exit (range 5) 1835 | -10/Mines | Core integrity fell below 50% 1872 | -10/Mines | Lost 6 parts (1p2n1u2w) 2242 | -10/Mines | Entered Exiles 2242 | -10/Exiles | Accompanied by 2 allies 2266 | -10/Exiles | Discovered new exit (range 15) 2272 | -10/Exiles | Led the pair of lost Derelicts to a safe place 2317 | -10/Exiles | Met 8R-AWN 2337 | -10/Exiles | Met EX-HEX 2398 | -10/Exiles | Met EX-DEC 2404 | -10/Exiles | Learned location of Zion (-6) 2454 | -10/Exiles | Met EX-BIN 2700 | -10/Exiles | Visited The Gauntlet 3025 | -10/Exiles | Discovered new exit (range 14) 3052 | -10/Exiles | Entered Mines 3055 | -9/Mines | Met a Derelict bent on vengeance 3127 | -9/Mines | Learned Materials security intel 3249 | -9/Mines | Build established: Hauler-Mutant 3484 | -9/Mines | Discovered new exit (range 5) 3557 | -9/Mines | Discovered new exit (range 9) 4089 | -9/Mines | Core integrity fell below 20% 4183 | -9/Mines | Entered Materials 4183 | -8/Materials | Evolved 4 slots: Utility x4 4184 | -8/Materials | Identified exit to Factory 5163 | -8/Materials | Discovered exit to Factory (range 5) 5169 | -8/Materials | Entered Factory 5169 | -7/Factory | Accompanied by 1 ally 5169 | -7/Factory | Evolved 2 slots: Power x1, Utility x1 5720 | -7/Factory | Discovered new exit (range 7) 5733 | -7/Factory | Identified exit to Lower Caves 6140 | -7/Factory | Discovered new exit (range 15) 6193 | -7/Factory | Repaired Hrd. Medium Armor Plating 6225 | -7/Factory | Identified exit to Factory 6380 | -7/Factory | Destroyed 7 combat bots 6659 | -7/Factory | Discovered exit to Factory (range 15) 6732 | -7/Factory | Sucked down chute 6732 | -7/Factory | Entered Waste 6733 | -7/Waste | Met a frightened Derelict 6765 | -7/Waste | Spotted C-40 Crusher 6772 | -7/Waste | Destroyed C-40 Crusher 6778 | -7/Waste | Spotted C-40 Crusher 6802 | -7/Waste | Spotted C-40 Crusher 6827 | -7/Waste | Spotted C-40 Crusher 6830 | -7/Waste | Spotted C-40 Crusher 6833 | -7/Waste | Spotted C-40 Crusher 6842 | -7/Waste | Crushed by Compactor (1 part destroyed, 2 dropped) 6887 | -7/Waste | Warlord forces began an assault 6889 | -7/Waste | Allies destroyed C-40 Crusher 6893 | -7/Waste | Allies destroyed C-40 Crusher 6897 | -7/Waste | Allies destroyed C-40 Crusher 6900 | -7/Waste | Allies destroyed C-40 Crusher 6903 | -7/Waste | Allies destroyed C-40 Crusher 7254 | -7/Waste | Discovered new exit (range 12) 7313 | -7/Waste | Identified exit to Factory 7405 | -7/Waste | Entered Factory 7405 | -7/Factory | Accompanied by 15 allies 7805 | -7/Factory | Repaired Lrn. Sensor Array? 7939 | -7/Factory | Discovered exit to Factory (range 6) 7995 | -7/Factory | Identified exit to Storage 8223 | -7/Factory | Fabricated M-13 Machinist (x1) 8343 | -7/Factory | Entered Lower Caves 8343 | -7/Lower Caves | Accompanied by 6 allies 8925 | -7/Lower Caves | Imp. Cooling System stolen by Master Thief 9013 | -7/Lower Caves | Attracted the attention of an 0b10 outpost 9126 | -7/Lower Caves | Encountered a Warlord checkpoint 9173 | -7/Lower Caves | Discovered new exit (range 5) 9183 | -7/Lower Caves | Identified exit to Lower Caves 9811 | -7/Lower Caves | Rewired Cogmind 9812 | -7/Lower Caves | Rewired Cogmind 9890 | -7/Lower Caves | Entered another Lower Caves area 9890 | -7/Lower Caves | Accompanied by 2 allies 9945 | -7/Lower Caves | Discovered exit to Factory (range 13) 9947 | -7/Lower Caves | Attracted the attention of an 0b10 checkpoint 10249 | -7/Lower Caves | Learned Factory stockpile data 10309 | -7/Lower Caves | Encountered a Warlord checkpoint 10445 | -7/Lower Caves | Identified exit to Data Miner 10698 | -7/Lower Caves | Spotted B-75 Beast 11620 | -7/Lower Caves | Entered Data Miner 11620 | -7/Data Miner | Discovered new exit (range 6) 11627 | -7/Data Miner | Identified exit to Proximity Caves 11647 | -7/Data Miner | Met Data Miner 11672 | -7/Data Miner | Learned location of Section 7 (-2) 11672 | -7/Data Miner | Acquired the access code to Warlord's prototype stash 11696 | -7/Data Miner | Received God Mode back door access code from Data Miner 11731 | -7/Data Miner | Entered Proximity Caves 12283 | -6/Proximity Caves | Escorted by Enhanced Grunt 12421 | -6/Proximity Caves | Discovered exit to Factory (range 11) 13609 | -6/Proximity Caves | Entered Factory 13609 | -6/Factory | Evolved 2 slots: Propulsion x1, Utility x1 14125 | -6/Factory | Fabricated P-70 Sage (x2) 14144 | -6/Factory | Incoming investigation squad redirected 14209 | -6/Factory | Fabricated P-70 Sage? 14211 | -6/Factory | Sucked down chute 14211 | -6/Factory | Entered Waste 14212 | -6/Waste | Met a frightened Derelict 14226 | -6/Waste | EMP discharged 14237 | -6/Waste | Met Warlord forces unprepared to attack 14255 | -6/Waste | Spotted C-40 Crusher 14267 | -6/Waste | Destroyed C-40 Crusher 14292 | -6/Waste | Spotted C-40 Crusher 14293 | -6/Waste | Spotted C-40 Crusher 14300 | -6/Waste | 5 allies followed down the chute 14300 | -6/Waste | Sage 5e assimilated hostile C-40 Crusher 14302 | -6/Waste | Sage 5g assimilated hostile C-40 Crusher 14306 | -6/Waste | Spotted C-40 Crusher 14314 | -6/Waste | Allies destroyed C-40 Crusher 14325 | -6/Waste | Spotted C-40 Crusher 14326 | -6/Waste | EMP discharged 14326 | -6/Waste | System corruption reached 10% 14337 | -6/Waste | Allies destroyed C-40 Crusher 14344 | -6/Waste | Spotted C-40 Crusher 14346 | -6/Waste | Found Damper Plating 14354 | -6/Waste | Allies destroyed C-40 Crusher 14426 | -6/Waste | EMP discharged 14452 | -6/Waste | Discovered new exit (range 11) 14464 | -6/Waste | Identified exit to Factory 14488 | -6/Waste | Entered Factory 14488 | -6/Factory | Accompanied by 24 allies 14616 | -6/Factory | Build established: Commander-Mutant 15342 | -6/Factory | Sage 5e assimilated hostile G-50 Soldier 15410 | -6/Factory | Discovered new exit (range 16) 15431 | -6/Factory | Identified exit to Factory 15477 | -6/Factory | Discovered new exit (range 15) 15494 | -6/Factory | Identified exit to Lower Caves 15707 | -6/Factory | Sage 5e assimilated hostile H-66 Slayer 15753 | -6/Factory | Found Prototype Launcher 15753 | -6/Factory | Identified Scatter Rocket Array 15878 | -6/Factory | Lost 6 parts (1p2n2u1w) 15888 | -6/Factory | First assault squad dispatched 15907 | -6/Factory | Incoming assault squad redirected 15940 | -6/Factory | Build established: Hauler-Mutant 16051 | -6/Factory | Found Damper Plating 16054 | -6/Factory | Found Damper Plating 16426 | -6/Factory | Discovered new exit (range 6) 16430 | -6/Factory | Identified exit to Extension 16432 | -6/Factory | Entered Extension 16523 | -6/Extension | Rescued a captive Derelict 16538 | -6/Extension | Rescued a captive Derelict 16607 | -6/Extension | Rescued A7 16752 | -6/Extension | Rescued a captive Derelict 16753 | -6/Extension | Rescued a captive Derelict 17087 | -6/Extension | Spotted B-75 Beast 17102 | -6/Extension | Allies destroyed B-75 Beast 17110 | -6/Extension | Spotted B-75 Beast 17121 | -6/Extension | Destroyed B-75 Beast 17144 | -6/Extension | Discovered exit to Factory (range 3) 17196 | -6/Extension | Energy Cycler disabled 17197 | -6/Extension | Rescued a captive Derelict 17197 | -6/Extension | Rescued a captive Derelict 17199 | -6/Extension | Rescued a captive Derelict 17199 | -6/Extension | Rescued a captive Derelict 17199 | -6/Extension | Rescued a captive Derelict 17205 | -6/Extension | Rescued a captive Derelict 17476 | -6/Extension | Discovered exit to Factory (range 10) 17478 | -6/Extension | Discovered new exit (range 6) 17507 | -6/Extension | Disrupted transfer network 17557 | -6/Extension | Identified exit to Cetus 17826 | -6/Extension | Disrupted transfer network 18962 | -6/Extension | Entered Cetus 18962 | -6/Cetus | Accompanied by 8 allies 18967 | -6/Cetus | Acquired a Cetus Manufacturing Module code from A7 19219 | -6/Cetus | Spotted Cetus Guard 19219 | -6/Cetus | Spotted Cetus Guard 19223 | -6/Cetus | Spotted Cetus Guard 19233 | -6/Cetus | Destroyed Cetus Guard 19233 | -6/Cetus | Spotted Cetus Guard 19239 | -6/Cetus | Allies destroyed Cetus Guard 19240 | -6/Cetus | Destroyed Cetus Guard 19242 | -6/Cetus | Destroyed Cetus Guard 19394 | -6/Cetus | Started Cetus Manufacturing Module 19403 | -6/Cetus | Escorted A7 to Cetus Mainframe 19419 | -6/Cetus | Manufactured an Enhanced Grunt 19433 | -6/Cetus | Found a strange terminal 19444 | -6/Cetus | Manufactured an Enhanced Grunt 19457 | -6/Cetus | Discovered new exit (range 15) 19469 | -6/Cetus | Manufactured an Enhanced Grunt 19489 | -6/Cetus | Spotted Cetus Guard 19489 | -6/Cetus | Spotted Cetus Guard 19493 | -6/Cetus | Spotted Cetus Guard 19494 | -6/Cetus | Manufactured an Enhanced Grunt 19494 | -6/Cetus | Allies destroyed Cetus Guard 19495 | -6/Cetus | Spotted Cetus Guard 19498 | -6/Cetus | Allies destroyed Cetus Guard 19504 | -6/Cetus | Destroyed Cetus Guard 19505 | -6/Cetus | Destroyed Cetus Guard 19519 | -6/Cetus | Manufactured an Enhanced Grunt 19536 | -6/Cetus | Discovered exit to Factory (range 15) 19545 | -6/Cetus | Met Revision 17 19611 | -6/Cetus | Destroyed A7 19615 | -6/Cetus | Extracted ID and sensor layout for unrecognized location from A7's data core 19622 | -6/Cetus | Found Med. Regenerative Plating 19658 | -6/Cetus | Identified exit to Archives 19660 | -6/Cetus | Entered Archives 19660 | -6/Archives | Accompanied by 4 allies 21852 | -6/Archives | Found Exp. Thermal Shield 21865 | -6/Archives | Discovered new exit (range 15) 21885 | -6/Archives | Identified exit to Hub_04(d) 22288 | -6/Archives | Discovered exit to Hub_04(d) (range 15) 22331 | -6/Archives | Discovered exit to Factory (range 16) 22489 | -6/Archives | Build established: Hauler-Skirmisher 23001 | -6/Archives | Entered Hub_04(d) 23001 | -6/Hub_04(d) | Accompanied by 3 allies 23010 | -6/Hub_04(d) | Discovered exit to Factory (range 18) 23351 | -6/Hub_04(d) | First assault squad dispatched 23369 | -6/Hub_04(d) | Discovered exit to Factory (range 13) 23374 | -6/Hub_04(d) | Incoming assault squad redirected 23679 | -6/Hub_04(d) | Network Hub disabled 23694 | -6/Hub_04(d) | Network Hub disabled 23711 | -6/Hub_04(d) | Spotted Lightning 23719 | -6/Hub_04(d) | Spotted Lightning 23720 | -6/Hub_04(d) | Spotted Lightning 23721 | -6/Hub_04(d) | Spotted Lightning 23722 | -6/Hub_04(d) | Spotted Lightning 23724 | -6/Hub_04(d) | Incoming assault squad redirected 23728 | -6/Hub_04(d) | Spotted Lightning 23728 | -6/Hub_04(d) | Spotted Lightning 23728 | -6/Hub_04(d) | Spotted Lightning 23728 | -6/Hub_04(d) | Spotted Lightning 23784 | -6/Hub_04(d) | Destroyed Lightning 23792 | -6/Hub_04(d) | Found Exp. Targeting Computer 23809 | -6/Hub_04(d) | Entered Factory 23809 | -5/Factory | Evolved 2 slots: Utility x2 23832 | -5/Factory | Lost 6 parts (1p1n2u2w) 23936 | -5/Factory | Build established: Hauler-Mutant 24943 | -5/Factory | Fabricated G-50 Soldier? 24944 | -5/Factory | Sucked down chute 24944 | -5/Factory | Entered Waste 24959 | -5/Waste | EMP discharged 24959 | -5/Waste | System corruption reached 10% 24985 | -5/Waste | 8 allies followed down the chute 24998 | -5/Waste | Spotted C-40 Crusher 25002 | -5/Waste | Found Prototype Launcher 25002 | -5/Waste | Identified Tesla Bomb Launcher 25025 | -5/Waste | Allies destroyed C-40 Crusher 25033 | -5/Waste | Crushed by Compactor (1 part destroyed, 1 dropped) 25034 | -5/Waste | Spotted C-40 Crusher 25034 | -5/Waste | Spotted C-40 Crusher 25059 | -5/Waste | EMP discharged 25061 | -5/Waste | Spotted C-40 Crusher 25075 | -5/Waste | Spotted C-40 Crusher 25075 | -5/Waste | Spotted C-40 Crusher 25078 | -5/Waste | Destroyed C-40 Crusher 25081 | -5/Waste | Build established: Scavenger-Mutant 25085 | -5/Waste | Found Damper Plating 25086 | -5/Waste | Crushed by Compactor (1 part destroyed, 2 dropped) 25120 | -5/Waste | Destroyed C-40 Crusher 25122 | -5/Waste | Destroyed C-40 Crusher 25157 | -5/Waste | Destroyed C-40 Crusher 25159 | -5/Waste | EMP discharged 25171 | -5/Waste | Found Damper Plating 25259 | -5/Waste | EMP discharged 25290 | -5/Waste | Destroyed C-40 Crusher 25359 | -5/Waste | EMP discharged 25444 | -5/Waste | Met Warlord forces unprepared to attack 25459 | -5/Waste | EMP discharged 25544 | -5/Waste | Discovered new exit (range 12) 25559 | -5/Waste | EMP discharged 25565 | -5/Waste | Identified exit to Factory 25639 | -5/Waste | Entered Factory 25639 | -5/Factory | Accompanied by 18 allies 26470 | -5/Factory | P-70 Sage assimilated allied 40-ZZO(g) 26508 | -5/Factory | Build established: Hauler-Mutant 26521 | -5/Factory | Fabricated Combat Drone Bay? 26654 | -5/Factory | Discovered new exit (range 69) 26701 | -5/Factory | Identified exit to Upper Caves 26723 | -5/Factory | Discovered new exit (range 117) 26745 | -5/Factory | Found Exp. Signal Interpreter 26896 | -5/Factory | Found Scatter Rocket Array 26948 | -5/Factory | Repaired Tesla Bomb Launcher 26974 | -5/Factory | Repaired Arm. Wheel 27008 | -5/Factory | Entered Upper Caves 27008 | -5/Upper Caves | Accompanied by 5 allies 27093 | -5/Upper Caves | Destroyed 7 combat bots 27433 | -5/Upper Caves | Discovered new exit (range 92) 28730 | -5/Upper Caves | Learned 12 Factory zone layouts 28776 | -5/Upper Caves | Rewired Cogmind 28780 | -5/Upper Caves | Rewired Cogmind 28858 | -5/Upper Caves | Identified exit to Upper Caves 28870 | -5/Upper Caves | A Derelict revealed a hidden shortcut to "reach the base" 28883 | -5/Upper Caves | Identified exit to Warlord 29773 | -5/Upper Caves | Entered another Upper Caves area 29773 | -5/Upper Caves | Accompanied by 2 allies 29795 | -5/Upper Caves | Discovered new exit (range 26) 30130 | -5/Upper Caves | Identified exit to Factory 30699 | -5/Upper Caves | Found Alien Artifact 30785 | -5/Upper Caves | Learned Factory stockpile data 30858 | -5/Upper Caves | Encountered a Warlord checkpoint 31157 | -5/Upper Caves | Entered Warlord 31194 | -5/Warlord | Discovered new exit (range 9) 31203 | -5/Warlord | Identified Dimensional Node Initializer 31203 | -5/Warlord | Initialized slip node 31244 | -5/Warlord | System corruption cleaned by Quarantine Array 31388 | -5/Warlord | Received a Watcher feed algorithm from an ecstatic Tinkerer 31419 | -5/Warlord | Visited the Vortex Lab 31422 | -5/Warlord | Found Prototype Energy Gun 31422 | -5/Warlord | Identified Vortex Shotgun 31427 | -5/Warlord | Found Vortex Shotgun 31431 | -5/Warlord | Found Prototype Piercing Weapon 31431 | -5/Warlord | Identified Vortex Lance 31434 | -5/Warlord | Warlord's base attacked by MAIN.C 31434 | -5/Warlord | Found Prototype Energy Gun 31434 | -5/Warlord | Identified Vortex Rail 31439 | -5/Warlord | Found Prototype Launcher 31439 | -5/Warlord | Identified Vortex Catalyst Activator 31455 | -5/Warlord | Destroyed B-86 Titan 31519 | -5/Warlord | Met Warlord 31530 | -5/Warlord | Opened Warlord's prototype stash 31535 | -5/Warlord | Found Prototype Reactor 31535 | -5/Warlord | Identified Vortex Chain Reactor 31542 | -5/Warlord | Found System Mapper 31546 | -5/Warlord | Found Prototype Processor 31702 | -5/Warlord | Warlord forces counterattacked 31707 | -5/Warlord | Spotted B-86 Titan 31716 | -5/Warlord | Spotted B-75 Beast 31740 | -5/Warlord | Spotted Striker 31752 | -5/Warlord | Spotted Executioner 31772 | -5/Warlord | Destroyed 8 combat bots 31787 | -5/Warlord | Identified exit to Proximity Caves 31788 | -5/Warlord | Entered Proximity Caves 32109 | -4/Proximity Caves | Rewired Cogmind 32110 | -4/Proximity Caves | Rewired Cogmind 32347 | -4/Proximity Caves | Discovered exit to Factory (range 15) 32408 | -4/Proximity Caves | Learned Research garrison access intel 32943 | -4/Proximity Caves | Entered Factory 32943 | -4/Factory | Accompanied by 4 allies 32943 | -4/Factory | Evolved 2 slots: Utility x2 33048 | -4/Factory | Identified exit to Upper Caves 33203 | -4/Factory | Entered Upper Caves 33373 | -4/Upper Caves | Attracted the attention of an 0b10 base 33412 | -4/Upper Caves | Learned location of 1 exit from Proximity Caves 33412 | -4/Upper Caves | Learned Research stockpile data 33412 | -4/Upper Caves | Learned Extension security intel 33529 | -4/Upper Caves | Identified exit to Upper Caves 33983 | -4/Upper Caves | Learned 12 Research zone layouts 34429 | -4/Upper Caves | Destroyed B-86 Titan 34816 | -4/Upper Caves | Entered another Upper Caves area 34816 | -4/Upper Caves | Accompanied by 1 ally 34822 | -4/Upper Caves | Discovered new exit (range 16) 34982 | -4/Upper Caves | Identified exit to Research 35451 | -4/Upper Caves | Discovered new exit (range 7) 35465 | -4/Upper Caves | Identified exit to Zhirov 35828 | -4/Upper Caves | Learned 8 Research zone layouts 36076 | -4/Upper Caves | Entered Zhirov 36076 | -4/Zhirov | Discovered new exit (range 3) 36078 | -4/Zhirov | Identified exit to Proximity Caves 36100 | -4/Zhirov | Met Zhirov 36123 | -4/Zhirov | Learned location of Quarantine (-3) 36123 | -4/Zhirov | Learned location of Testing (-2) 36123 | -4/Zhirov | Learned location of Command (-1) 36148 | -4/Zhirov | Zhirov requested help retrieving the SGEMP Prototype 36168 | -4/Zhirov | Found Alien Artifact 36168 | -4/Zhirov | Identified Integrated Dissipator 36168 | -4/Zhirov | Installed Integrated Dissipator, increased core heat dissipation (+2%) 36221 | -4/Zhirov | Found Alien Artifact 36429 | -4/Zhirov | Entered Proximity Caves 36480 | -3/Proximity Caves | Destroyed 8 combat bots 36595 | -3/Proximity Caves | Attracted the attention of an 0b10 outpost 36680 | -3/Proximity Caves | Rewired Cogmind 36700 | -3/Proximity Caves | Rewired Cogmind 37726 | -3/Proximity Caves | Entered Research 37726 | -3/Research | Evolved 2 slots: Utility x2 37727 | -3/Research | Identified exit to Quarantine 37727 | -3/Research | Identified exit to Research 37727 | -3/Research | Identified exit to Armory 37729 | -3/Research | Loaded intel: 4 garrison access locations 37804 | -3/Research | Identified Exp. Core Analyzer 37804 | -3/Research | Identified Transdimensional Reconstructor 37926 | -3/Research | Revision forces began assault on 0b10 38108 | -3/Research | Met up with Revision 17++ 38162 | -3/Research | Spotted B-86 Titan 38314 | -3/Research | Entered Armory 38326 | -3/Armory | Rewired Cogmind 38352 | -3/Armory | Rewired Cogmind 38361 | -3/Armory | Rewired Cogmind 38366 | -3/Armory | Rewired Cogmind 38427 | -3/Armory | Found Exp. Transmission Jammer 38589 | -3/Armory | First assault squad dispatched 38610 | -3/Armory | Incoming assault squad redirected 38631 | -3/Armory | Destroyed 10 combat bots 38746 | -3/Armory | Found Prototype Launcher 38746 | -3/Armory | Identified Hellfire Missile Launcher 38814 | -3/Armory | Warped through subspace to slip node 38814 | -3/Armory | Discovered new exit (range 1) 38814 | -3/Armory | Identified exit to Lab 38863 | -3/Armory | Incoming assault squad redirected 38889 | -3/Armory | Entered Lab 38889 | -3/Lab | Discovered exit to Research (range 9) 38906 | -3/Lab | Hidden lab's door opened automatically 38906 | -3/Lab | Sensor layout match revealed 38907 | -3/Lab | Gained access to the hidden lab's interior 38923 | -3/Lab | Found Alien Artifact 38923 | -3/Lab | Identified Core Reset Matrix 38923 | -3/Lab | Used Core Reset Matrix 38927 | -3/Lab | Sensed 3 artifacts in vicinity 38938 | -3/Lab | Discovered exit to Research (range 8) 38949 | -3/Lab | Unable to decrypt terminal 38982 | -3/Lab | Found Prototype Special Weapon 38982 | -3/Lab | Identified Gui. Remote Datajack 39002 | -3/Lab | Unable to decrypt terminal 39018 | -3/Lab | Found Prototype Energy Cannon 39018 | -3/Lab | Identified Potential Cannon 39023 | -3/Lab | Found Prototype Energy Gun 39023 | -3/Lab | Identified Tachyon Dispersion Ray 39028 | -3/Lab | Found Prototype Protection 39028 | -3/Lab | Identified Hvy. Regenerative Plating 39089 | -3/Lab | Found Prototype Hackware 39123 | -3/Lab | Found Core Expander 39123 | -3/Lab | Installed Core Expander, added new Propulsion slot 39138 | -3/Lab | Found Integrated Dissipator 39138 | -3/Lab | Installed Integrated Dissipator, increased core heat dissipation (+2%) 39153 | -3/Lab | Found Transdimensional Reconstructor 39270 | -3/Lab | Entered Research 39270 | -2/Research | Warlord forces began assault on 0b10 39270 | -2/Research | Evolved 2 slots: Utility x2 39380 | -2/Research | Research machine network offline 39420 | -2/Research | Spotted B-90 Cyclops 39498 | -2/Research | Destroyed B-90 Cyclops 39547 | -2/Research | Spotted Striker 39548 | -2/Research | Borebot progress halted 39549 | -2/Research | Spotted Striker 39554 | -2/Research | Destroyed Striker 39566 | -2/Research | Borebot progress halted 39572 | -2/Research | Destroyed Striker 39702 | -2/Research | Spotted Executioner 39722 | -2/Research | Spotted Executioner 39731 | -2/Research | Borebot progress halted 39779 | -2/Research | Found Exp. Targeting Computer 39842 | -2/Research | Met up with Warlord 39876 | -2/Research | Discovered new exit (range 48) 40028 | -2/Research | Spotted Striker 40028 | -2/Research | Spotted Striker 40239 | -2/Research | Borebot progress halted 40239 | -2/Research | Borebot progress halted 40395 | -2/Research | Spotted Striker 40430 | -2/Research | Destroyed Striker 40620 | -2/Research | Discovered new exit (range 8) 40628 | -2/Research | Identified exit to Access 40801 | -2/Research | Warlord destroyed during the assault 41299 | -2/Research | Spotted Executioner 41300 | -2/Research | Spotted Striker 41328 | -2/Research | Destroyed Striker 41356 | -2/Research | Spotted Executioner 41357 | -2/Research | Spotted Executioner 41366 | -2/Research | Destroyed Executioner 41370 | -2/Research | Spotted Executioner 41372 | -2/Research | Spotted Striker 41374 | -2/Research | Destroyed Executioner 41377 | -2/Research | Destroyed Striker 41382 | -2/Research | Destroyed Executioner 41392 | -2/Research | Spotted Executioner 41403 | -2/Research | Destroyed Executioner 41489 | -2/Research | Discovered new exit (range 4) 41493 | -2/Research | Identified exit to Testing 41495 | -2/Research | Entered Testing 41653 | -2/Testing | Found Prototype Energy Cannon 41653 | -2/Testing | Identified Null Cannon 41800 | -2/Testing | Found Quantum Capacitor 41885 | -2/Testing | Spotted Striker 41905 | -2/Testing | Destroyed Striker 41905 | -2/Testing | Spotted Striker 41912 | -2/Testing | Destroyed Striker 41953 | -2/Testing | Spotted Alpha 7 41993 | -2/Testing | Destroyed Alpha 7 42012 | -2/Testing | Stole the SGEMP Prototype 42108 | -2/Testing | Found Prototype Energy Cannon 42108 | -2/Testing | Identified Imp. Potential Cannon 42118 | -2/Testing | Found Imp. Potential Cannon 42268 | -2/Testing | Found Prototype Launcher 42289 | -2/Testing | Identified Ragnarok Missile Launcher 42289 | -2/Testing | Identified Quantum Router 42309 | -2/Testing | Discovered exit to Access (range 15) 42443 | -2/Testing | Spotted Fortress 42541 | -2/Testing | Discovered new exit (range 7) 42547 | -2/Testing | Identified exit to Section 7 42548 | -2/Testing | Entered Section 7 42549 | -2/Section 7 | Sensed 21 artifacts in vicinity 42586 | -2/Section 7 | Found Integrated Dissipator 42586 | -2/Section 7 | Installed Integrated Dissipator, increased core heat dissipation (+2%) 42603 | -2/Section 7 | Found Prototype Launcher 42613 | -2/Section 7 | Identified Com. Tesla Bomb Launcher 42620 | -2/Section 7 | Found Com. Tesla Bomb Launcher 42623 | -2/Section 7 | Found Com. Tesla Bomb Launcher 42782 | -2/Section 7 | Found Prototype Device 42848 | -2/Section 7 | Spotted B-90 Cyclops 43001 | -2/Section 7 | Found Integrity Redistributor 43037 | -2/Section 7 | Used Integrity Redistributor, redistributed integrity from core (-228) 43095 | -2/Section 7 | First assault squad dispatched 43262 | -2/Section 7 | Spotted S7 Guard 43263 | -2/Section 7 | Spotted S7 Guard 43276 | -2/Section 7 | Spotted S7 Guard 43299 | -2/Section 7 | Found Core Membrane 43299 | -2/Section 7 | Installed Core Membrane, gained immunity to corruption 43377 | -2/Section 7 | Destroyed S7 Guard 43387 | -2/Section 7 | Destroyed S7 Guard 43399 | -2/Section 7 | Destroyed S7 Guard 43420 | -2/Section 7 | Found Integrated Heat Negator 43420 | -2/Section 7 | Installed Integrated Heat Negator, increased core heat dissipation (+2%) 43441 | -2/Section 7 | Found Integrated Singularity Reactor 43441 | -2/Section 7 | Installed Integrated Singularity Reactor, increased core energy generation (+2%) 43484 | -2/Section 7 | Identified Exp. Actuator Array 43574 | -2/Section 7 | Scanned by Researcher 43575 | -2/Section 7 | Intercept squad dispatched 43583 | -2/Section 7 | Spotted Tracker 43584 | -2/Section 7 | Spotted Tracker 43588 | -2/Section 7 | Destroyed Tracker 43593 | -2/Section 7 | Destroyed Tracker 43608 | -2/Section 7 | Spotted Combat Programmer 43621 | -2/Section 7 | Spotted Combat Programmer 43622 | -2/Section 7 | Destroyed Combat Programmer 43631 | -2/Section 7 | Destroyed Combat Programmer 43650 | -2/Section 7 | Found Exp. Targeting Computer 43660 | -2/Section 7 | Spotted Executioner 43661 | -2/Section 7 | Spotted Executioner 43667 | -2/Section 7 | Destroyed Executioner 43676 | -2/Section 7 | Destroyed Executioner 43679 | -2/Section 7 | Build established: Alien-Mutant 43716 | -2/Section 7 | Found Transdimensional Reconstructor 43720 | -2/Section 7 | Found Transdimensional Reconstructor 43817 | -2/Section 7 | Found Sigix Quantum Sheargun 43821 | -2/Section 7 | Found Sigix Quantum Sheargun 43824 | -2/Section 7 | Found Sigix Quantum Sheargun 43970 | -2/Section 7 | Spotted B-99 Colossus 44023 | -2/Section 7 | Destroyed B-99 Colossus 44063 | -2/Section 7 | Lost 3 parts (3u) 44134 | -2/Section 7 | Found LRC Boosters 44134 | -2/Section 7 | Installed LRC Boosters, increased mass support (+10) 44142 | -2/Section 7 | Found LRC Insulator 44142 | -2/Section 7 | Installed LRC Insulator, gained EM resistance (25) 44144 | -2/Section 7 | Found LRC Armor 44144 | -2/Section 7 | Installed LRC Armor, increased core integrity (+250) 44339 | -2/Section 7 | Intercept squad dispatched 44345 | -2/Section 7 | Spotted Tracker 44345 | -2/Section 7 | Spotted Tracker 44345 | -2/Section 7 | Spotted Tracker 44346 | -2/Section 7 | Destroyed Tracker 44347 | -2/Section 7 | Destroyed Tracker 44349 | -2/Section 7 | Destroyed Tracker 44359 | -2/Section 7 | Spotted Combat Programmer 44360 | -2/Section 7 | Spotted Combat Programmer 44374 | -2/Section 7 | Destroyed Combat Programmer 44378 | -2/Section 7 | Spotted Combat Programmer 44411 | -2/Section 7 | Destroyed Combat Programmer 44418 | -2/Section 7 | Destroyed Combat Programmer 44439 | -2/Section 7 | Destroyed 12 combat bots 44476 | -2/Section 7 | Garrison activated, responded to threat 44487 | -2/Section 7 | Intercept squad dispatched 44488 | -2/Section 7 | Spotted Tracker 44489 | -2/Section 7 | Spotted Tracker 44489 | -2/Section 7 | Spotted Tracker 44489 | -2/Section 7 | Spotted Tracker 44489 | -2/Section 7 | Destroyed Tracker 44494 | -2/Section 7 | Destroyed Tracker 44495 | -2/Section 7 | Spotted Combat Programmer 44504 | -2/Section 7 | Destroyed Tracker 44504 | -2/Section 7 | Destroyed Tracker 44512 | -2/Section 7 | Spotted Combat Programmer 44513 | -2/Section 7 | Spotted Combat Programmer 44517 | -2/Section 7 | Destroyed Combat Programmer 44518 | -2/Section 7 | Spotted Combat Programmer 44527 | -2/Section 7 | Destroyed Combat Programmer 44535 | -2/Section 7 | Destroyed Combat Programmer 44544 | -2/Section 7 | Destroyed Combat Programmer 44571 | -2/Section 7 | Destroyed 9 combat bots 44601 | -2/Section 7 | Incoming assault squad redirected 44609 | -2/Section 7 | Garrison activated, responded to threat 44657 | -2/Section 7 | Lost 5 parts (1p1n2u1w) 44667 | -2/Section 7 | Incoming investigation squad redirected 44730 | -2/Section 7 | Found Enh. Gamma Rifle 44748 | -2/Section 7 | Destroyed 24 combat bots 44766 | -2/Section 7 | Spotted B-90 Cyclops 44772 | -2/Section 7 | Destroyed B-90 Cyclops 44812 | -2/Section 7 | Destroyed 7 combat bots 44860 | -2/Section 7 | Destroyed 12 combat bots 45400 | -2/Section 7 | Entered Access 45400 | -1/Access | Evolved 2 slots: Utility x1, Weapon x1 45401 | -1/Access | Attacked by Zhirov 45404 | -1/Access | Destroyed Svarog 45422 | -1/Access | Destroyed Perun 45444 | -1/Access | Destroyed Zhirov 45446 | -1/Access | Found Adv. Powered Armor 45650 | -1/Access | First assault squad dispatched 45671 | -1/Access | Incoming assault squad redirected 45678 | -1/Access | Incoming assault squad redirected 45719 | -1/Access | High security lockdown imminent 45799 | -1/Access | High security lockdown engaged 45801 | -1/Access | Destroyed 7 combat bots 45848 | -1/Access | Intercept squad dispatched 45858 | -1/Access | Spotted Tracker 45858 | -1/Access | Spotted Tracker 45860 | -1/Access | Destroyed Tracker 45875 | -1/Access | Destroyed Tracker 45878 | -1/Access | Spotted Combat Programmer 45895 | -1/Access | Destroyed Combat Programmer 45916 | -1/Access | Destroyed 11 combat bots 45929 | -1/Access | Spotted Striker 45938 | -1/Access | Destroyed Striker 45970 | -1/Access | Destroyed 9 combat bots 45978 | -1/Access | Spotted Combat Programmer 45989 | -1/Access | Destroyed Combat Programmer 45989 | -1/Access | Spotted Executioner 45989 | -1/Access | Spotted Striker 45997 | -1/Access | Spotted Investigator 45999 | -1/Access | Spotted Striker 46003 | -1/Access | Warped through subspace 46034 | -1/Access | Lost 5 parts (2p1n2u) 46068 | -1/Access | Garrison activated, responded to threat 46074 | -1/Access | Spotted Striker 46077 | -1/Access | Spotted Executioner 46077 | -1/Access | Spotted Executioner 46078 | -1/Access | Destroyed Striker 46080 | -1/Access | Destroyed Executioner 46088 | -1/Access | Destroyed Executioner 46095 | -1/Access | Spotted Striker 46104 | -1/Access | Destroyed Striker 46107 | -1/Access | Destroyed Striker 46144 | -1/Access | Lost 3 parts (1n1u1w) 46148 | -1/Access | Spotted Executioner 46175 | -1/Access | Warped through subspace 46205 | -1/Access | Destroyed 38 combat bots 46205 | -1/Access | Lost 3 parts (3w) 46272 | -1/Access | Destroyed Investigator 46274 | -1/Access | Crushed by falling debris 46285 | -1/Access | Destroyed Executioner 46304 | -1/Access | Spotted Executioner 46306 | -1/Access | Spotted Striker 46306 | -1/Access | Spotted Striker 46308 | -1/Access | Destroyed Executioner 46309 | -1/Access | Destroyed Striker 46311 | -1/Access | Destroyed Striker 46314 | -1/Access | Spotted Striker 46314 | -1/Access | Spotted Striker 46322 | -1/Access | Destroyed Striker 46323 | -1/Access | Destroyed Striker 46323 | -1/Access | Spotted Executioner 46323 | -1/Access | Spotted Executioner 46339 | -1/Access | Destroyed Executioner 46339 | -1/Access | Destroyed Executioner 46347 | -1/Access | Spotted Striker 46347 | -1/Access | Spotted Striker 46347 | -1/Access | Spotted Executioner 46348 | -1/Access | Destroyed Striker 46363 | -1/Access | Spotted Striker 46363 | -1/Access | Spotted Striker 46363 | -1/Access | Spotted Executioner 46363 | -1/Access | Warped through subspace 46374 | -1/Access | Destroyed 16 combat bots 46374 | -1/Access | Garrison activated, responded to threat 46391 | -1/Access | Lost 12 parts (3p3n4u2w) 46517 | -1/Access | Spotted B-99 Colossus 46517 | -1/Access | Spotted B-99 Colossus 46526 | -1/Access | Discovered new exit (range 3) 46528 | -1/Access | Entered Command 46604 | -1/Command | Incoming investigation squad redirected 46736 | -1/Command | Disengaged cave seal 46809 | -1/Command | First assault squad dispatched 46830 | -1/Command | Incoming assault squad redirected 46881 | -1/Command | Spotted B-99 Colossus 46891 | -1/Command | Incoming assault squad redirected 46946 | -1/Command | Core integrity fell below 50% 46964 | -1/Command | Destroyed B-99 Colossus 46982 | -1/Command | Lost 20 parts (3p2n12u3w) 46985 | -1/Command | Destroyed 9 combat bots 47045 | -1/Command | Incoming assault squad redirected 47052 | -1/Command | Incoming assault squad redirected 47064 | -1/Command | Spotted B-99 Colossus 47064 | -1/Command | Spotted Alpha 7 47064 | -1/Command | Spotted Striker 47064 | -1/Command | Spotted Executioner 47064 | -1/Command | Spotted Executioner 47065 | -1/Command | Spotted B-99 Colossus 47065 | -1/Command | Spotted Executioner 47067 | -1/Command | Spotted Striker 47068 | -1/Command | Discovered new exit (range 7) 47069 | -1/Command | Emitted hypermatrix ping 47069 | -1/Command | Spotted Executioner 47070 | -1/Command | Spotted Alpha 7 47074 | -1/Command | Assembled emerged from beneath the floor 47077 | *** | Heading to fleet! Last Messages --------------- 47075_ as-68790 triggered Stasis Trap. 47075_ A bubble of rippling energy engulfs the area. 47075_ Field strength at 92. 47075_ as-80637 triggered Stasis Trap. 47075_ A bubble of rippling energy engulfs the area. 47075_ Field strength at 92. 47075_ as-54164 knocked back. 47075_ Slug penetrates as-89817. 47075_ as-89817 destroyed. 47075_ Field strength at 84. 47075_ as-80637 destroyed. 47075_ Slug penetrates Wall. 47076_ B-99 Colossus activates siege mode. 47076_ Slug penetrates as-54164. 47076_ as-54164 destroyed. 47076_ Field strength at 76. 47077_ Executioner system corrupted by crushing effect. 47077_ as-49333 knocked back. 47077_ Slug penetrates as-68790. 47077_ as-68790 destroyed. Map ----- +----------------------------------------------------+ | #### # ?????????????? | | ?????# #? ?????????????? | | ???????????# #?? ?????????????? | | ???????????# #????????????????? | | ???????????# ######????????????????? | | ???????????# #?????????????????????? | | ????????####+##""" ""## #?????????????????????? | | ????????# " #? #?????????????????????? | | ????????# # ####++++##????????????????????? | | ????????# "" ####?# #????????????????????? | | ????????# """ #????#^^ ^ ##???????????????????? | | ????????# "R #???? ????????????????????? | | ????????+ """ #????# ##???????????????????? | | ????????# """ #???? #???????????????????? | | ????????# #????# ##???????????????????? | | ????????# #???? #???????????????????? | | ????????# #???## ##???????????????????? | | ????????# #???# #???????????????????? | | ????????###+#"###?###; 7 E####?????????????????? | | ????????# #?#BBKKE7 #?????????????????? | | ????????# ###BB E #?????????????????? | | ????????# ##; E^ ^ ???????????????????? | | ????????# % ]" ; ^ "?????????????????????? | | ????????# w ;%%^a "?? #?????????????????? | | ????????# h Y ;% "" " #?????????????????? | | ????????#=% ""# % "@ #?????????????????? | | ????????# C ""; " " #?????????????????? | | ?????# %% ### """"""?????????????????????? | | ?????# %# #?# ??????????????????????????? | | ?????# # #?# ?????????????????????????? | | ?????# ?# #?" ????????????????????????? | | ????? ?# ####"####????????????????????????? | | ????##??# #??###???????????????????????????? | | ????????# #????????????????????????????????? | | ????????# #????????????????????????????????? | | ????????# #????????????????????????????????? | | ????????#########????????????????????????????????? | | ?????????????????????????????????????????????????? | | ?????????????????????????????????????????????????? | | ?????????????????????????????????????????????????? | | ?????????????????????????????????????????????????? | | ?????????????????????????????????????????????????? | | ?????????????????????????????????????????????????? | | ?????????????????????????????????????????????????? | | ?????????????????????????????????????????????????? | | ?????????????????????????????????????????????????? | | ?????????????????????????????????????????????????? | | ?????????????????????????????????????????????????? | | ?????????????????????????????????????????????????? | | | +----------------------------------------------------+ Best States ------------- Heat Dissipation 190 Coolant Potential 50 Energy Generation 75 Energy Capacity 1940 Matter Stores 600 Matter Capacity 600 Sight Range 20 Robot Scan Range 22 Terrain Scan Range 24 Terrain Scan Density 210 Jamming Range 22 Additional Mass Support 9 Armor Coverage 2400 Resistance: KI 30 Resistance: TH 30 Resistance: EX 50 Resistance: EM 100 Evasion (%) 40 Targeting Accuracy 36 Armor Integrity Analysis 66 Recoil Reduction 6 Matter Filtering 50 Offensive Hacking 20 Defensive Hacking 12 Item Schematics ----------------- Tesla Bomb Launcher | -2/Testing | Scanalyzed Robot Schematics ------------------ None Fabricated ------------ M-13 Machinist | x1 | -7/Factory P-70 Sage | x2 | -6/Factory P-70 Sage | x2 | -6/Factory G-50 Soldier | x3 | -5/Factory Combat Drone Bay | x1 | -5/Factory Alien Tech Used ----------------- Dimensional Node Initializer Integrated Dissipator Transdimensional Reconstructor Core Reset Matrix Core Expander Integrity Redistributor Core Membrane Integrated Heat Negator Integrated Singularity Reactor LRC Boosters LRC Insulator LRC Armor Sigix Quantum Sheargun Achievements -------------- None Challenges ------------ None Game ------ Seed AntimissileTitaniumClaws Manual? 0 Play Time 09:21:26 Cumulative 1134.5 hours Start 2020.04.04 @ 22:59:41 End 2020.04.05 @ 20:59:26 Sessions 9 Manual Loads 0 Difficulty Rogue Special Mode None Game No. 389 Rogue 389 Adventurer 0 Explorer 0 Win Type 2 Total 251 Types 214/6/12/3/3/2/11 Lore% 99 Gallery% 100 Achievement% 94 Wizard Run 0 Options --------- ASCII 0 Keyboard 0 Movement Numpad Keybinds 0 Fullscreen 1 Font 18/Terminus Map View 76x50 Tactical HUD 1 Map Filters NONE Filters NONE Steam 1 RUN: 2ed042bf-3457-44c0-8e1f-fc7c8e6a1b82